Cogmind - Beta 11.1 *** ADVENTURER MODE // 2022.05.07 @ 20:40:09 Player: Fgdfgfthgr Result: Self-destructed Performance ------------- Evolutions (9) 4500 Regions Visited (31) 6200 Robots Destroyed (335) 1675 Value Destroyed (13632) 13632 Prototype IDs (139) 2780 Alien Tech Used (4) 800 Bonus (9863) 9863 TOTAL SCORE: 39450 Bonus ------- High Alert Combat Kills 1705 Follower Combat Kills 5053 Network Hubs Disabled 400 Met Data Miner 300 Met Imprinter 300 Was Imprinted 300 Met Warlord at Base 500 MAIN.C Attacked Warlord 500 Built Enhanced Grunts 300 A7 Reached Mainframe 300 Met R17 at Cetus 500 Scanned by Researcher 500 Pursued by Intercept 1000 Friendly Fire -1795 Cogmind --------- Core Integrity 1387/1600 Matter 60/300 Energy 70/100 System Corruption 8% Temperature Cool (0) Movement Core (1350) Ox26 Location -1/Access Parts ------- > --- POWER (2) -------- (None) > --- PROPULSION (8) --- Improved Antigrav System Improved Antigrav System Improved Antigrav System Combat Antigrav System Combat Antigrav System Combat Antigrav System Cooled Linear Gravjet > --- UTILITY (10) ----- Large Storage Unit Machine Analyzer Enhanced Optical Array Long-range Sensor Array Advanced Melee Analysis Suite Experimental Armor Integrity Analyzer Centrium Medium Armor Plating Graphene Brace > --- WEAPON (6) ------- BFG-9k Vortex Edition > --- INVENTORY (15) --- Combat Gravmag System Improved Antigrav System Antigrav Array Experimental Coolant Injector Experimental Phase Shifter Thermal Barrier Antimissile System Subatomic Replicator Peak State ------------ > --- POWER ------------ Light Quantum Reactor Light Quantum Reactor > --- PROPULSION ------- Cooled Gravmag System Improved Antigrav System Improved Antigrav System Improved Antigrav System Combat Antigrav System Combat Antigrav System Cooled Linear Gravjet Cooled Linear Gravjet > --- UTILITY ---------- Advanced Heat Sink Large Storage Unit Machine Analyzer Enhanced Optical Array Long-range Sensor Array Advanced Melee Analysis Suite Experimental Armor Integrity Analyzer Centrium Medium Armor Plating Medium Regenerative Plating Graphene Brace > --- WEAPON ----------- BFG-9k Vortex Edition > --- INVENTORY -------- Combat Gravmag System Improved Antigrav System Combat Antigrav System Experimental Coolant Injector Experimental Phase Shifter Thermal Barrier Antimissile System Subatomic Replicator [Rating: 226] Favorites ----------- Power F-cell Engine Engine F-cell Engine Power Core Light Nuclear Core Reactor Particle Reactor Propulsion Combat Airjet Treads Light Treads Leg Aluminum Leg Wheel Compact Wheel Hover Unit Combat Airjet Utility Structural Scanner Device Structural Scanner Storage Large Storage Unit Processor Machine Analyzer Hackware Authchip [Power] Protection Medium Regenerative Plating Artifact Microwarp Drive Weapon RU-N14's Throwing Claymores Energy Gun Small Laser Energy Cannon Neutron Cannon Ballistic Gun Light Assault Rifle Launcher Long-range Missile Launcher Special Weapon RU-N14's Throwing Claymores Impact Weapon Impact Mace Slashing Weapon Molecular Scythe Piercing Weapon CR-A16's Behemoth Slayer Special Melee Weapon Advanced Datajack Build | -11 -10 -10 -10 -9 -8 -8 -7 -7 -7 -7 -6 -6 -6 -6 -6 -5 -5 -5 -5 -5 -5 -4 -4 -4 -4 -3 -3 -3 -3 -2 -1 ------- Run | Scr Mat Min Exi Min Mat Sto Fac Low Low Zio Pro Fac Low Low Dat Pro Fac Ext Cet Arc Hub Fac Upp Upp War Pro Res Qua Sec Res Acc Slots Evolved 18 | . . . . . 4 . 2 . . . . 2 . . . . 2 . . . . 2 . . . . 2 . . 2 2 Power 1 | . . . . . . . . . . . . . . . . . . . . . . 1 . . . . . . . . . Propulsion 6 | . . . . . 2 . . . . . . 1 . . . . 1 . . . . . . . . . 1 . . . 1 Utility 8 | . . . . . 2 . 2 . . . . 1 . . . . 1 . . . . 1 . . . . 1 . . . . Weapon 3 | . . . . . . . . . . . . . . . . . . . . . . . . . . . . . . 2 1 Parts Attached 433 | . 8 . . 23 37 18 33 12 7 8 . 32 2 7 2 6 32 11 4 5 12 38 . 9 14 11 20 17 12 41 12 Power 34 | . 1 . . 2 3 . 3 2 1 . . 2 . . . 1 3 . . 1 . 3 . . 5 . 1 . . 6 . Engine 20 | . 1 . . 1 2 . 3 2 1 . . 1 . . . . 2 . . . . 2 . . 4 . . . . 1 . Core 5 | . . . . 1 1 . . . . . . 1 . . . 1 . . . . . 1 . . . . . . . . . Reactor 9 | . . . . . . . . . . . . . . . . . 1 . . 1 . . . . 1 . 1 . . 5 . Propulsion 77 | . 3 . . 9 19 6 8 . . . . 2 . . . . 4 1 . 1 1 2 . . 1 . 4 . . 12 4 Treads 20 | . . . . 2 12 6 . . . . . . . . . . . . . . . . . . . . . . . . . Leg . | . . . . . . . . . . . . . . . . . . . . . . . . . . . . . . . . Wheel 16 | . 3 . . 7 6 . . . . . . . . . . . . . . . . . . . . . . . . . . Hover 41 | . . . . . 1 . 8 . . . . 2 . . . . 4 1 . 1 1 2 . . 1 . 4 . . 12 4 Flight . | . . . . . . . . . . . . . . . . . . . . . . . . . . . . . . . . Utility 215 | . 4 . . 3 4 1 16 4 3 5 . 24 . 6 . 3 23 8 2 1 6 25 . 6 5 10 12 13 11 18 2 Device 138 | . . . . 1 1 . 6 2 1 4 . 13 . 3 . 2 12 7 1 1 5 13 . 4 4 9 11 13 8 16 1 Storage 5 | . 1 . . . . . 1 . . . . 1 . 1 . . . . . . . . . . . . 1 . . . . Processor 12 | . . . . . 1 . 2 . . . . 2 . . . . 2 1 . . 1 . . . 1 . . . 1 . 1 Hackware 7 | . . . . . . . 3 . . . . 1 . . . . 2 . . . . 1 . . . . . . . . . Protection 52 | . 3 . . 2 2 1 4 2 2 1 . 7 . 2 . 1 7 . 1 . . 11 . 2 . 1 . . 1 2 . Artifact 1 | . . . . . . . . . . . . . . . . . . . . . . . . . . . . . 1 . . Weapon 107 | . . . . 9 11 11 6 6 3 3 . 4 2 1 2 2 2 2 2 2 5 8 . 3 3 1 3 4 1 5 6 Energy Gun 17 | . . . . 5 2 8 . . . . . . . . . . . . . . . . . . . . . . . 1 1 Energy Cannon 34 | . . . . 3 7 . 1 2 2 . . 1 . . 1 1 . . . 1 3 2 . . 2 . 1 2 . 3 2 Ballistic Gun 4 | . . . . . 2 2 . . . . . . . . . . . . . . . . . . . . . . . . . Ballistic Cannon . | . . . . . . . . . . . . . . . . . . . . . . . . . . . . . . . . Launcher 13 | . . . . . . 1 3 2 1 . . 1 . . . . . . 2 . . 1 . 1 . . . . . . 1 Special Weapon 7 | . . . . . . . . . . 1 . 1 1 1 1 1 . 1 . . . . . . . . . . . . . Impact Weapon 3 | . . . . 1 . . . . . . . . . . . . . . . . 1 . . . . . . . . 1 . Slashing Weapon 15 | . . . . . . . 2 2 . . . . . . . . 1 1 . . . 3 . 2 1 . 1 . 1 . 1 Piercing Weapon 13 | . . . . . . . . . . 2 . 1 1 . . . 1 . . . 1 2 . . . 1 1 2 . . 1 Special Melee Weapon 1 | . . . . . . . . . . . . . . . . . . . . 1 . . . . . . . . . . . Unidentified Prototypes 45 | . . . . . 3 7 2 . 1 2 . 7 . . . 1 3 . 1 . . 2 . . 5 . 2 . 2 5 2 Parts Lost 45 | . . . . 13 8 1 . . . . . . . 1 . . . 1 . . 1 1 . . . . 1 . 1 10 7 Power 6 | . . . . 2 1 . . . . . . . . . . . . . . . . . . . . . . . . 1 2 Propulsion 16 | . . . . 4 5 . . . . . . . . . . . . . . . . . . . . . 1 . . 4 2 Utility 12 | . . . . 2 . . . . . . . . . 1 . . . 1 . . . 1 . . . . . . 1 4 2 Weapon 11 | . . . . 5 2 1 . . . . . . . . . . . . . . 1 . . . . . . . . 1 1 Highest Loss Streak 7 | . . . . 7 2 1 . . . . . . . 1 . . . 1 . . 1 1 . . . . 1 . 1 2 5 To Critical Strikes . | . . . . . . . . . . . . . . . . . . . . . . . . . . . . . . . . Average Slot Usage (%) 97 | . 97 100 100 96 98 99 93 95 95 95 100 93 100 98 88 99 99 100 100 100 99 100 100 100 99 100 99 100 97 91 90 Engine 5 | . 14 14 14 3 . 9 7 7 7 7 7 5 . . . . 2 . . . . 5 5 5 6 10 6 4 4 2 . Core 1 | . . . . 10 8 . . . . . . . 6 6 6 6 . . . . . 4 5 5 3 . . . . . . Reactor 1 | . . . . . . . . . . . . . . . . . 1 5 5 5 5 . . . . . 1 4 4 5 7 Treads 6 | . . . . . 27 36 . . . . . . . . . . . . . . . . . . . . . . . . . Wheel 4 | . 25 28 28 26 8 . . . . . . . . . . . . . . . . . . . . . . . . . . Hover 20 | . . . . . . . 29 30 29 28 28 31 31 31 31 31 32 33 33 33 33 30 30 30 30 30 30 31 31 27 30 Device 10 | . . . . 11 9 9 15 14 13 12 14 9 12 12 18 17 16 16 16 16 13 10 10 10 10 10 13 13 10 13 10 Storage 7 | . 14 14 14 14 9 9 7 7 7 7 7 6 6 6 6 6 5 5 5 5 5 5 5 5 5 5 4 4 4 4 3 Processor 13 | . . . . . 8 9 14 15 14 14 14 18 18 18 18 18 16 16 16 16 19 20 20 20 21 25 22 22 22 17 15 Protection 6 | . 12 14 14 2 8 9 6 7 8 5 7 3 6 5 . . 5 5 5 5 5 9 10 10 8 5 4 4 4 4 7 Energy Gun 3 | . 14 14 14 13 4 8 . . . . . . . . . . . . . . . . . . . . . . . 1 1 Energy Cannon 3 | . . . . 9 7 . . 3 5 7 7 6 6 6 . 6 5 5 5 1 3 3 5 . . . . 1 4 1 . Ballistic Gun 2 | . 14 14 14 2 5 9 . . . . . . . . . . . . . . . . . . . . . . . . . Special Weapon 1 | . . . . . . . . . . 1 7 3 . 4 . 5 5 5 1 . . . . . . . . . . . . Slashing Weapon 2 | . . . . . . . 6 3 1 . . . . . . . 2 5 5 5 . 1 5 9 10 10 6 4 4 4 3 Piercing Weapon 2 | . . . . . . . . . . 6 7 7 11 6 6 6 2 . . . 1 5 5 5 5 5 6 6 4 4 3 Naked Turns . | . . . . . . . . . . . . . . . . . . . . . . . . . . . . . . . . Heaviest Build 102 | 10 92 92 92 93 97 98 34 44 46 42 39 59 50 63 50 58 68 66 65 73 72 71 68 71 80 75 76 92 92 102 85 Greatest Support 112 | 20 32 32 32 32 83 84 48 44 44 44 44 60 60 60 60 60 76 76 75 75 74 78 72 72 75 75 89 93 93 95 112 Greatest Overweight (x) 5 | . 2 2 2 5 3 1 . . 1 . . . . 1 . . . . . 1 . . . . 1 . . 1 1 1 . Average Overweight (x) . | . 1 2 2 3 1 1 . . . . . . . . . . . . . . . . . . . . . . . . . Largest Inventory Capacity 25 | . 25 25 25 25 25 25 25 10 10 10 10 15 15 15 15 15 15 15 15 15 15 15 15 15 15 15 15 15 15 15 15 Average Capacity 17 | . 23 25 25 25 25 25 10 10 10 10 10 12 15 15 15 15 15 15 15 15 15 15 15 15 15 15 15 15 15 15 15 Most Carried 25 | . 25 24 24 24 25 25 24 10 10 10 10 15 15 15 15 15 15 15 15 15 15 15 15 15 15 15 15 15 15 15 15 Average Carried 16 | . 17 23 24 19 23 24 9 9 9 9 10 11 14 15 15 14 14 14 14 14 14 14 15 15 14 15 14 14 14 14 14 Final Capacity 25 | 8 25 25 25 25 25 25 10 10 10 10 10 15 15 15 15 15 15 15 15 15 15 15 15 15 15 15 15 15 15 15 15 Final Carried 25 | 6 23 24 24 20 25 25 10 10 10 10 10 15 15 15 15 15 15 15 15 15 15 15 15 15 15 15 15 15 14 15 9 Class Distribution -------------------- 27% | Mutant 19% | Machinist-Scout 11% | Scout 10% | Scavenger-Mutant 8% | Scavenger-Scout 7% | Commander-Mutant 6% | Messiah-Scout 3% | Machinist-Mutant Dominant Class ---------------- Mutant | -10/Materials Mutant | -10/Mines Mutant | -10/Exiles Scavenger-Mutant | -9/Mines Mutant | -8/Materials Mutant | -8/Storage Scout | -7/Factory Machinist-Scout | -7/Lower Caves Machinist-Scout | -7/Lower Caves Machinist-Scout | -7/Zion Machinist-Scout | -6/Proximity Caves Machinist-Mutant | -6/Factory Machinist-Scout | -6/Lower Caves Scavenger-Scout | -6/Lower Caves Scavenger-Scout | -6/Data Miner Scavenger-Scout | -5/Proximity Caves Machinist-Scout | -5/Factory Commander-Scout | -5/Extension Commander-Mutant | -5/Cetus Commander-Mutant | -5/Archives Scavenger-Scout | -5/Hub_04(d) Messiah-Scout | -4/Factory Messiah-Scout | -4/Upper Caves Messiah-Scout | -4/Upper Caves Messiah-Scout | -4/Warlord Scout | -3/Proximity Caves Scout | -3/Research Scout | -3/Quarantine Sprinter | -3/Section 7 Scavenger-Mutant | -2/Research Mutant | -1/Access Resources | -11 -10 -10 -10 -9 -8 -8 -7 -7 -7 -7 -6 -6 -6 -6 -6 -5 -5 -5 -5 -5 -5 -4 -4 -4 -4 -3 -3 -3 -3 -2 -1 ----------- Run | Scr Mat Min Exi Min Mat Sto Fac Low Low Zio Pro Fac Low Low Dat Pro Fac Ext Cet Arc Hub Fac Upp Upp War Pro Res Qua Sec Res Acc Matter Collected 7408 | 200 115 13 . 259 554 441 253 116 359 136 55 2306 36 80 . 94 289 136 29 76 90 321 21 169 140 110 170 160 153 419 108 Remotely . | . . . . . . . . . . . . . . . . . . . . . . . . . . . . . . . . Salvage Created 15414 | . 517 142 . 378 2515 1366 532 40 317 103 36 1316 118 77 . 450 452 969 44 143 877 807 . 183 . 231 494 186 271 2509 341 Parts 772 | . 44 12 . 11 138 83 35 3 15 . 6 84 12 8 . 13 37 41 3 11 22 12 . 9 . 11 23 16 18 78 27 Haulers Intercepted 24 | . 1 . . . 3 5 4 . . . . 2 . . . . . 2 . . 4 2 . . . . . . . 1 . Recyclers Shooed 7 | . 1 . . 1 1 . . . . . . 1 . . . . . 1 . . . 1 . . . . . . . 1 . Parts Field Recycled . | . . . . . . . . . . . . . . . . . . . . . . . . . . . . . . . . Retrieved Matter . | . . . . . . . . . . . . . . . . . . . . . . . . . . . . . . . . Parts Self-Destructed 62 | . . . . . . . . 3 13 . 3 . 1 7 . 7 . . . . . . . 8 8 12 . . . . . Prevented 18 | . . . . . . . . . . . . . . . . . . . . . . . . 2 16 . . . . . . Kills | -11 -10 -10 -10 -9 -8 -8 -7 -7 -7 -7 -6 -6 -6 -6 -6 -5 -5 -5 -5 -5 -5 -4 -4 -4 -4 -3 -3 -3 -3 -2 -1 ------- Run | Scr Mat Min Exi Min Mat Sto Fac Low Low Zio Pro Fac Low Low Dat Pro Fac Ext Cet Arc Hub Fac Upp Upp War Pro Res Qua Sec Res Acc Combat Hostiles Destroyed 209 | . 10 4 . 15 34 17 7 1 14 . 7 13 4 1 . 12 3 4 3 . 3 6 . 3 . 4 5 2 3 25 9 Melee 57 | . . . . . . . 4 . . . . 4 . . . 1 2 2 . . 2 5 . 3 . 3 4 2 2 20 3 Guns 59 | . 10 4 . 13 16 15 . . . . . . . . . . . . . . . . . . . . . . . 1 . Cannons 27 | . . . . . 14 2 . . 4 . . . 2 . . 2 1 . . . . 1 . . . . . . . 1 . AOE 54 | . . . . 2 2 . 3 1 9 . 7 9 2 . . 8 . 2 3 . . . . . . . . . . . 6 Classes Destroyed 20 | . 6 . . 4 4 1 1 . . . . . 1 1 . 1 . . . . 1 . . . . . . . . . . Worker 22 | . . . . 1 5 . 2 . . . . 5 . . . . 1 3 . . . 3 . . . . . 1 . . 1 Builder 18 | . 1 1 . . 4 . 2 . . . . 6 . . . . . 2 . . . 2 . . . . . . . . . Tunneler 10 | . . . . . 1 1 . . . . . 3 . . . . 1 2 . . . 2 . . . . . . . . . Hauler 24 | . 1 . . . 3 5 4 . . . . 2 . . . . . 2 . . 4 2 . . . . . . . 1 . Recycler 17 | . . . . 1 3 1 . . . . . 2 . . . . 1 4 . . 1 1 . . . . . . . 3 . Minesweeper 1 | . . . . . . . . . . . . . . . . 1 . . . . . . . . . . . . . . . Mechanic 3 | . 1 . . . 1 1 . . . . . . . . . . . . . . . . . . . . . . . . . Operator 9 | . . . . . 3 . 1 . . . . 1 . . . . . . . 4 . . . . . . . . . . . Watcher 26 | . 3 . . . 5 2 . . . . . 2 . . . . 5 1 2 . . 1 . . . . 2 2 . 1 . Swarmer 37 | . 3 2 . 3 4 . 1 . 4 . 7 . 4 . . 1 1 . . . . . . . . 3 . . . . 4 Grunt 70 | . 7 2 . 2 20 10 4 . 6 . . 7 . . . 8 . 1 . . . . . . . . 3 . . . . Brawler 2 | . . . . . . 1 . . . . . . . . . 1 . . . . . . . . . . . . . . . Sentry 31 | . . . . . 9 6 . . 1 . . 1 . . . 1 1 2 . . . 1 . 1 . . 1 . 1 6 . Demolisher 1 | . . . . 1 . . . . . . . . . . . . . . . . . . . . . . . . . . . Hunter 14 | . . . . . 1 1 . 1 2 . . 3 . . . . . . . . 1 2 . . . . . . . 3 . Programmer 25 | . . . . . . . 2 . 1 . . 2 . . . . 1 . . . 2 3 . 2 . . . 2 1 5 4 Behemoth 7 | . . . . . . . . . . . . . . 1 . 1 . 1 . . . . . . . 1 1 . 1 1 . Cetus Guard 3 | . . . . . . . . . . . . . . . . . . . 3 . . . . . . . . . . . . Enhanced Grunt 1 | . . . . . . . . . . . . . . . . . . . . . 1 . . . . . . . . . . Tracker 6 | . . . . . . . . . . . . . . . . . . . . . . . . . . . . . . 5 1 Combat Programmer 5 | . . . . . . . . . . . . . . . . . . . . . . . . . . . . . . 5 . Z-Light 3 | . . . . . . . . . . . . . . . . . . . . . 3 . . . . . . . . . . Samaritan 1 | . . . . . . . . . . . . . 1 . . . . . . . . . . . . . . . . . . Assembled 9 | . . . . 9 . . . . . . . . . . . . . . . . . . . . . . . . . . . Best Kill Streak 10 | . 4 2 . 10 7 8 4 1 4 . 4 6 4 1 . 9 2 9 3 3 3 6 . 2 . 3 4 2 1 6 5 Combat Bots Only 10 | . 3 2 . 10 4 3 2 1 4 . 4 5 4 1 . 8 2 2 2 . 2 1 . 2 . 3 3 2 1 5 5 Max Kills in Single Turn 5 | . 1 1 . 2 3 1 3 1 4 . 4 3 2 1 . 5 1 2 1 1 4 1 . 1 . 2 1 1 1 1 2 Gunslinging 1 | . . . . . 1 . . . . . . . . . . . . . . . . . . . . . . . . . . Exploded 5 | . . . . 1 1 . 2 1 4 . 4 2 1 . . 5 . 1 1 . . . . . . . . . . . 2 Melee 2 | . . . . . . . 1 . . . . 1 . . . 1 1 1 . . 1 1 . 1 . 2 1 1 1 1 1 Uniques/NPCs Destroyed . | . . . . . . . . . . . . . . . . . . . . . . . . . . . . . . . . Combat | -11 -10 -10 -10 -9 -8 -8 -7 -7 -7 -7 -6 -6 -6 -6 -6 -5 -5 -5 -5 -5 -5 -4 -4 -4 -4 -3 -3 -3 -3 -2 -1 -------- Run | Scr Mat Min Exi Min Mat Sto Fac Low Low Zio Pro Fac Low Low Dat Pro Fac Ext Cet Arc Hub Fac Upp Upp War Pro Res Qua Sec Res Acc Damage Taken 11658 | . 136 41 . 949 1403 490 331 211 545 . 12 558 57 424 . 40 122 504 93 . 602 457 . 93 . 110 24 247 298 2549 1362 Core 1565 | . 4 7 . 133 240 76 43 75 44 . . 133 . 40 . 24 . 78 17 . 62 103 . . . 18 . 39 28 188 213 Absorbed by Shields 938 | . . . . . . . . . . . . . . . . . 36 96 34 . 4 . . . 8 64 31 84 157 424 . Redirected to Shielding 257 | . 17 . . 30 12 . . . . . . 26 33 93 . . . . . . . 46 . . . . . . . . . Regen/Repaired (Parts) 1587 | . . . . . 19 . 22 . . . . . . . . . 122 148 15 . 84 385 . 48 . 24 . . 82 523 115 Core Remaining (%) 76 | 100 . . . 42 . 42 . . . . 76 . . . . 76 . . . . 84 . . . . 89 . . 94 87 . Volleys Fired 470 | . 35 13 . 46 119 69 1 7 48 . 3 18 4 . . 17 19 10 10 1 13 12 . 1 . . 3 5 1 5 10 Largest 2 | . 2 2 . 2 2 2 1 2 2 . 1 1 1 . . 1 1 1 1 1 1 1 . 1 . . 1 1 1 1 1 Hottest 121 | . 60 60 . 121 116 94 39 69 90 . . 65 . . . 90 90 90 90 90 90 90 . 43 . . 50 50 50 120 80 Shots Fired 751 | . 69 26 . 86 237 138 1 8 53 . 3 19 4 . . 17 19 10 10 1 13 12 . 1 . . 3 5 1 6 9 Gun 429 | . 69 26 . 79 134 116 . . . . . . . . . . . . . . . . . . . . . . . 5 . Cannon 250 | . . . . 7 103 22 . 1 40 . . 8 . . . 11 19 1 2 1 13 12 . . . . 3 5 1 1 . Launcher 32 | . . . . . . . 1 7 13 . . . . . . . . . 1 . . . . 1 . . . . . . 9 Special 40 | . . . . . . . . . . . 3 11 4 . . 6 . 9 7 . . . . . . . . . . . . Kinetic 202 | . 35 13 . 17 68 69 . . . . . . . . . . . . . . . . . . . . . . . . . Thermal 302 | . 34 13 . 41 53 47 . 1 40 . . 8 . . . 11 19 1 2 1 13 12 . . . . . . . 6 . Explosive 71 | . . . . . . . 1 7 13 . 3 11 4 . . 6 . 9 8 . . . . . . . . . . . 9 Electromagnetic 167 | . . . . 28 116 22 . . . . . . . . . . . . . . . . . 1 . . . . . . . Entropic 9 | . . . . . . . . . . . . . . . . . . . . . . . . . . . 3 5 1 . . Robot Hit Streak 45 | . 29 21 . 13 45 24 . . 21 . . 6 7 . . 17 18 5 8 9 2 8 . . . . . 10 . 13 17 Robot Miss Streak 4 | . 1 1 . 2 2 2 . . 2 . . 1 . . . . 1 . . . 4 . . . . . . . . . . Penetration Max . | . . . . . . . . . . . . . . . . . . . . . . . . . . . . . . . . Secondary Targets 3 | . . 1 . . 1 1 . . . . . . . . . . . . . . . . . . . . . . . . . Max Gunslinging Chain 1 | . . 1 . . 1 1 . . . . . . . . . . . . . . . . . . . . . . . . . Shots Hit Robots 834 | . 58 20 . 63 191 96 29 . 35 2 . 49 3 4 . 14 16 24 3 12 28 29 . 6 . 4 14 11 8 99 16 Core Hits 512 | . 35 12 . 33 88 43 13 4 24 . 7 41 4 . . 22 11 25 29 4 13 8 . 4 . 3 8 7 3 53 18 Critical Kills 2 | . . . . . 1 . . . 1 . . . . . . . . . . . . . . . . . . . . . . Critical Parts Destroyed 6 | . . . . . 1 . . . . . . . . . . . . . . . . 5 . . . . . . . . . Critical Strikes 72 | . . . . 2 3 1 4 . 1 . . 11 . . . . 3 3 1 1 1 7 . 2 . 1 5 3 3 18 2 Burn 3 | . . . . 2 . 1 . . . . . . . . . . . . . . . . . . . . . . . . . Meltdown 2 | . . . . . 1 . . . 1 . . . . . . . . . . . . . . . . . . . . . . Destroy 1 | . . . . . 1 . . . . . . . . . . . . . . . . . . . . . . . . . . Corrupt 1 | . . . . . 1 . . . . . . . . . . . . . . . . . . . . . . . . . . Smash 5 | . . . . . . . . . . . . . . . . . . . . . . 5 . . . . . . . . . Sever 22 | . . . . . . . 4 . . . . 2 . . . . . 3 1 1 1 . . 1 . . . 1 . 7 1 Impale 37 | . . . . . . . . . . . . 9 . . . . 3 . . . . 2 . 1 . 1 5 1 3 11 1 Sunder 1 | . . . . . . . . . . . . . . . . . . . . . . . . . . . . 1 . . . Melee Attacks 548 | . . . . 1 . . 49 9 1 3 1 63 3 8 . 4 53 20 . 11 28 48 . 9 2 14 29 24 11 129 28 Kinetic 9 | . . . . . . . . . . . . . . . . . . . . . . . . . . . . . . 9 . Impact 44 | . . . . 1 . . . . . . . . . . . . . . . . 14 29 . . . . . . . . . Slashing 262 | . . . . . . . 49 9 1 . . . . . . . 21 20 . 8 4 5 . 7 2 6 9 18 2 78 23 Piercing 230 | . . . . . . . . . . 3 1 63 3 8 . 4 32 . . . 10 14 . 2 . 8 20 6 9 42 5 Sneak Attacks 75 | . . . . 1 . . 7 . . . . 19 2 . . 2 3 8 . 9 5 12 . . . . 1 1 . 5 . Combat Hostiles 6 | . . . . . . . . . . . . 2 . . . . . 2 . . 1 . . . . . 1 . . . . Follow-up Attacks 31 | . . . . . . . . . . . . . . . . . . . . . 1 2 . 2 . 1 2 . 1 19 3 Damage Inflicted 39824 | . 609 215 . 982 4062 1828 2351 183 2300 151 912 4766 568 99 . 2066 883 3156 1709 629 2079 2017 . 323 . 148 621 667 314 4854 1332 Guns 4622 | . 609 215 . 632 1706 1385 . . . . . . . . . . . . . . . . . . . . . . . 75 . Cannons 4534 | . . . . 160 1855 435 . . 799 . . 81 . . . 298 127 . 75 37 245 246 . . . . . 132 . 44 . Explosions 11985 | . . . . 110 501 . 544 183 1501 . 874 2104 382 . . 1477 . 1601 1571 . 411 . . 27 . . . . . . 699 Melee 18069 | . . . . 80 . . 1807 . . 151 . 2395 122 99 . 198 756 1393 . 592 1423 1771 . 296 . 148 621 535 314 4735 633 Ramming 8 | . . . . . . 8 . . . . . . . . . . . . . . . . . . . . . . . . . Kinetic 2083 | . 254 64 . 88 770 696 . . . . . . . . . . . . . . . . . . . . . . . 211 . Thermal 5688 | . 355 151 . 485 1341 689 390 . 799 . . 81 . . . 298 127 . 325 37 245 246 . . . . . . . 119 . Explosive 10256 | . . . . . . . 154 183 1501 . 874 2104 382 . . 1477 . 1601 1321 . . . . . . . . . . . 659 Electromagnetic 3193 | . . . . 329 1951 435 . . . . . . . . . . . . . . 411 . . 27 . . . . . . 40 Impact 2437 | . . . . 80 . . . . . . . . . . . . . . . . 1017 1340 . . . . . . . . . Slashing 9606 | . . . . . . . 1807 . . . 38 186 64 . . 93 260 1555 63 592 133 149 . 261 . 51 212 323 54 3229 536 Piercing 6421 | . . . . . . . . . . 151 . 2395 122 99 . 198 496 . . . 273 282 . 35 . 97 409 212 260 1295 97 Entropic 132 | . . . . . . . . . . . . . . . . . . . . . . . . . . . . 132 . . . Highest Corruption 12 | . . . . 4 . . . . . . . 2 2 2 2 2 . . . . 2 1 . . . . . . 4 12 8 Average Corruption 3 | . . . . 3 . . . . . . . 1 2 2 2 2 . . . . 1 1 . . . . . . 4 5 4 Corruption Purged 11 | . . . . . . . . . . . . . . . . . . . . . 2 4 . . . . . . . 5 . Corruption Blocked . | . . . . . . . . . . . . . . . . . . . . . . . . . . . . . . . . Effects 67 | . . . . 19 . . . . . . . 5 2 3 1 9 . . . . . 2 . . . . . . 4 19 3 Message Errors 20 | . . . . 7 . . . . . . . . 1 1 . 2 . . . . . 2 . . . . . . 1 5 1 Matter Fused 17 | . . . . 4 . . . . . . . 3 1 1 . 1 . . . . . . . . . . . . 2 5 . Heat Flow Errors 3 | . . . . 1 . . . . . . . . . 1 . . . . . . . . . . . . . . . 1 . Energy Discharges 10 | . . . . 2 . . . . . . . . . . 1 2 . . . . . . . . . . . . . 5 . Parts Rejected 3 | . . . . 1 . . . . . . . . . . . . . . . . . . . . . . . . 1 1 . Data Loss (minor) 6 | . . . . 2 . . . . . . . 1 . . . 1 . . . . . . . . . . . . . 1 1 Data Loss (major) 2 | . . . . 1 . . . . . . . . . . . 1 . . . . . . . . . . . . . . . Misfires 4 | . . . . 1 . . . . . . . 1 . . . 1 . . . . . . . . . . . . . 1 . Weapon Failures 2 | . . . . . . . . . . . . . . . . 1 . . . . . . . . . . . . . . 1 Overload Shots 3 | . . . . . . . . . 3 . . . . . . . . . . . . . . . . . . . . . . Overflow Damage 3907 | . . . . 78 69 . 302 . 108 135 31 878 79 . . . 86 150 25 108 389 927 . 6 . . 86 14 . 321 115 Projectiles 77 | . . . . 7 7 . . . 38 . . 7 . . . . 4 . . . . . . . . . . 14 . . . Explosions 463 | . . . . 21 62 . 29 . 70 . 31 118 38 . . . . 64 25 . 5 . . . . . . . . . . Melee 3367 | . . . . 50 . . 273 . . 135 . 753 41 . . . 82 86 . 108 384 927 . 6 . . 86 . . 321 115 Knockbacks 8 | . . . . . . . . . . . . . . . . . . . . . 4 4 . . . . . . . . . Impact 7 | . . . . . . . . . . . . . . . . . . . . . 3 4 . . . . . . . . . Kinetic . | . . . . . . . . . . . . . . . . . . . . . . . . . . . . . . . . Secondary 1 | . . . . . . . . . . . . . . . . . . . . . 1 . . . . . . . . . . Self-Inflicted Damage 457 | . . . . 36 66 . 41 . 19 . . . . . . . . 71 . . 158 . . . . . . . . . 66 Shots 13 | . . . . 2 2 . 1 . 1 . . . . . . . . 1 . . 2 . . . . . . . . . 4 Rammed 1 | . . . . . . 1 . . . . . . . . . . . . . . . . . . . . . . . . . Targets Rammed 1 | . . . . . . 1 . . . . . . . . . . . . . . . . . . . . . . . . . Kicked . | . . . . . . . . . . . . . . . . . . . . . . . . . . . . . . . . Crushed . | . . . . . . . . . . . . . . . . . . . . . . . . . . . . . . . . Highest Temperature 459 | . 134 92 . 453 45 37 2 12 199 . . 459 . 167 . 9 228 6 18 . . 241 . 4 . 4 8 6 4 255 24 Average Temperature 75 | . 35 41 . 177 15 11 2 8 69 . . 123 . 80 . 9 95 4 13 . . 99 . 4 . 2 4 6 2 87 6 Received Heat Transfer 2277 | . 81 9 . 93 945 279 48 24 156 . . 189 . 96 . 21 18 44 6 . 51 18 . . . 12 9 14 30 122 12 Effects 6 | . . . . 3 . . . . . . . 2 . . . . . . . . . . . . . . . . . 1 . Shutdowns 3 | . . . . 2 . . . . . . . 1 . . . . . . . . . . . . . . . . . . . Energy Bleed 3 | . . . . 1 . . . . . . . 1 . . . . . . . . . . . . . . . . . 1 . Siege Activations . | . . . . . . . . . . . . . . . . . . . . . . . . . . . . . . . . Robots Corrupted 1 | . . . . . 1 . . . . . . . . . . . . . . . . . . . . . . . . . . Combat Hostiles 1 | . . . . . 1 . . . . . . . . . . . . . . . . . . . . . . . . . . Parts Fried 43 | . . . . 1 16 1 . . . . . . . . . . . . . . 8 17 . . . . . . . . . Impact Corruptions 36 | . . . . 2 . . . . . . . . . . . . . . . . 10 24 . . . . . . . . . Robots Melted 2 | . . . . . 1 . . . 1 . . . . . . . . . . . . . . . . . . . . . . Combat Hostiles 2 | . . . . . 1 . . . 1 . . . . . . . . . . . . . . . . . . . . . . Parts Melted 11 | . . 1 . . 4 1 . . 3 . . . . . . . . . . . . . . . . . . . . 1 1 Heat Transferred 7580 | . 775 325 . 1225 2226 1406 250 . 1001 . . 111 . . . . . . 150 . . . . . . . . . . 111 . Parts Sabotaged . | . . . . . . . . . . . . . . . . . . . . . . . . . . . . . . . . Parts Stolen . | . . . . . . . . . . . . . . . . . . . . . . . . . . . . . . . . Parts Stripped . | . . . . . . . . . . . . . . . . . . . . . . . . . . . . . . . . Power Chain Reactions 10 | . . . . 2 6 . . . . . . . . . . . . . 1 . 1 . . . . . . . . . . Missiles Intercepted . | . . . . . . . . . . . . . . . . . . . . . . . . . . . . . . . . Alert | -11 -10 -10 -10 -9 -8 -8 -7 -7 -7 -7 -6 -6 -6 -6 -6 -5 -5 -5 -5 -5 -5 -4 -4 -4 -4 -3 -3 -3 -3 -2 -1 ------- Run | Scr Mat Min Exi Min Mat Sto Fac Low Low Zio Pro Fac Low Low Dat Pro Fac Ext Cet Arc Hub Fac Upp Upp War Pro Res Qua Sec Res Acc Peak Influence 1169 | . 245 106 . 133 552 412 291 . . . . 358 . . . . 591 1023 830 468 1066 1169 . . . . 254 948 622 854 935 Initial 498 | . . 56 . . 16 6 . . . . . 94 . . . . 169 249 498 279 19 445 . . . . 59 25 366 304 447 Average 297 | . 82 45 . 29 217 171 118 . . . . 174 . . . . 315 450 746 285 549 832 . . . . 155 616 479 596 586 Maximum Alert Level 4 | . 1 . . . 2 2 1 . . . . 1 . . . . 2 3 3 2 3 4 . . . . 1 3 2 3 3 Low Security (%) 43 | . 81 100 . 100 53 56 79 . . . . 61 . . . . 8 8 . 25 13 . . . . . 55 15 . . . Level 1 29 | . 18 . . . 33 43 20 . . . . 38 . . . . 78 52 . 39 15 . . . . . 44 11 35 9 . Level 2 15 | . . . . . 13 . . . . . . . . . . . 13 23 34 35 34 32 . . . . . 14 64 64 75 Level 3 9 | . . . . . . . . . . . . . . . . . . 15 65 . 37 55 . . . . . 58 . 25 24 Level 4 . | . . . . . . . . . . . . . . . . . . . . . . 12 . . . . . . . . . Level 5 . | . . . . . . . . . . . . . . . . . . . . . . . . . . . . . . . . High Security . | . . . . . . . . . . . . . . . . . . . . . . . . . . . . . . . . Max Security . | . . . . . . . . . . . . . . . . . . . . . . . . . . . . . . . . Squads Dispatched 89 | . 2 . . 1 6 4 6 . . . . 9 . 1 . 1 6 3 . . 11 10 . . . . 1 10 3 12 3 Investigation 27 | . 2 . . 1 3 3 3 . . . . 1 . 1 . . 5 . . . . 3 . . . . 1 3 1 . . Extermination 10 | . . . . . . . 1 . . . . 3 . . . . . . . . 1 2 . . . . . 1 . 2 . Reinforcement 29 | . . . . . 3 . 2 . . . . 5 . . . . . 3 . . 9 . . . . . . 4 2 1 . Assault 9 | . . . . . . . . . . . . . . . . 1 1 . . . . 5 . . . . . 1 . 1 . Garrison 3 | . . . . . . 1 . . . . . . . . . . . . . . 1 . . . . . . 1 . . . Intercept 11 | . . . . . . . . . . . . . . . . . . . . . . . . . . . . . . 8 3 Searches Triggered . | . . . . . . . . . . . . . . . . . . . . . . . . . . . . . . . . Data Miner Redirects 11 | . . . . . . . . . . . . . . . . . 3 . . . . 3 . . . . 1 2 1 1 . Construction Impeded 6 | . . . . . . . . . . . . 2 . . . . . 2 . . 2 . . . . . . . . . . Haulers Reinforced 6 | . . . . . . . 1 . . . . 3 . . . . . . . . 2 . . . . . . . . . . Active Scanning Responses . | . . . . . . . . . . . . . . . . . . . . . . . . . . . . . . . . Cargo Convoy Interrupts . | . . . . . . . . . . . . . . . . . . . . . . . . . . . . . . . . Stealth | -11 -10 -10 -10 -9 -8 -8 -7 -7 -7 -7 -6 -6 -6 -6 -6 -5 -5 -5 -5 -5 -5 -4 -4 -4 -4 -3 -3 -3 -3 -2 -1 --------- Run | Scr Mat Min Exi Min Mat Sto Fac Low Low Zio Pro Fac Low Low Dat Pro Fac Ext Cet Arc Hub Fac Upp Upp War Pro Res Qua Sec Res Acc Distress Signals 25 | . 1 . . . 4 2 1 . . . . 1 . . . . . . 2 . 2 3 . . . . . 4 . 3 2 Communications Jammed . | . . . . . . . . . . . . . . . . . . . . . . . . . . . . . . . . Distress Signals . | . . . . . . . . . . . . . . . . . . . . . . . . . . . . . . . . Times Spotted 463 | . 16 5 . 29 56 28 21 3 15 . 1 30 4 9 . 9 15 21 9 7 29 40 . 3 3 4 7 27 9 42 21 Peak Tracking Total 19 | . 3 3 . 19 4 4 6 1 5 . 1 5 4 13 . 6 3 4 5 1 8 8 . 2 2 3 3 8 5 8 8 Tactical Retreats 44 | . 2 . . 4 4 1 4 2 1 . . 2 . . . 1 . . . . 3 9 . . 1 . . 3 2 3 2 Traps | -11 -10 -10 -10 -9 -8 -8 -7 -7 -7 -7 -6 -6 -6 -6 -6 -5 -5 -5 -5 -5 -5 -4 -4 -4 -4 -3 -3 -3 -3 -2 -1 ------- Run | Scr Mat Min Exi Min Mat Sto Fac Low Low Zio Pro Fac Low Low Dat Pro Fac Ext Cet Arc Hub Fac Upp Upp War Pro Res Qua Sec Res Acc Traps Triggered 21 | . 1 . . . 2 . 4 . . . . 5 . . . . . 3 . . 1 3 . . . . . 1 1 . . Indirectly 1 | . . . . . . . . . . . . . . . . . . . . . 1 . . . . . . . . . . Trap Hack Attempts . | . . . . . . . . . . . . . . . . . . . . . . . . . . . . . . . . Triggered . | . . . . . . . . . . . . . . . . . . . . . . . . . . . . . . . . Disarmed . | . . . . . . . . . . . . . . . . . . . . . . . . . . . . . . . . Reprogrammed . | . . . . . . . . . . . . . . . . . . . . . . . . . . . . . . . . Reused 2 | . . . . . . . . . . . . . . . . . . . . . . 2 . . . . . . . . . Traps Extracted . | . . . . . . . . . . . . . . . . . . . . . . . . . . . . . . . . Installed 5 | . . . . . . . . . . . . . . . . . . . . . . 5 . . . . . . . . . Triggered 14 | . . . . . . . . . . . . . . . . . . . . . . 4 . 2 7 1 . . . . . Most Traps Carried 6 | . . . . . . . . . . . . . . . . 6 6 6 6 6 6 6 1 2 2 . . . . . . Machines | -11 -10 -10 -10 -9 -8 -8 -7 -7 -7 -7 -6 -6 -6 -6 -6 -5 -5 -5 -5 -5 -5 -4 -4 -4 -4 -3 -3 -3 -3 -2 -1 ---------- Run | Scr Mat Min Exi Min Mat Sto Fac Low Low Zio Pro Fac Low Low Dat Pro Fac Ext Cet Arc Hub Fac Upp Upp War Pro Res Qua Sec Res Acc Machines Disabled 52 | . . . . . 2 4 5 . . . . 3 . . . 1 4 4 . 2 14 4 . . . . . 5 2 . 2 Max in Single Turn 11 | . . . . . 1 1 4 . . . . 2 . . . 1 1 1 . . 11 . . . . . . 1 1 . 1 Garrison Access 11 | . . . . . 1 1 1 . . . . 2 . . . . 3 . . . 1 1 . . . . . 1 . . . Network Hub 2 | . . . . . . . . . . . . . . . . . . . . . 2 . . . . . . . . . . Energy Cycler 1 | . . . . . . . . . . . . . . . . . . . . . . . . . . . . . . . 1 Machines Sabotaged . | . . . . . . . . . . . . . . . . . . . . . . . . . . . . . . . . Garrisons Compromised . | . . . . . . . . . . . . . . . . . . . . . . . . . . . . . . . . Overloaded Fab Kills . | . . . . . . . . . . . . . . . . . . . . . . . . . . . . . . . . Hacking | -11 -10 -10 -10 -9 -8 -8 -7 -7 -7 -7 -6 -6 -6 -6 -6 -5 -5 -5 -5 -5 -5 -4 -4 -4 -4 -3 -3 -3 -3 -2 -1 --------- Run | Scr Mat Min Exi Min Mat Sto Fac Low Low Zio Pro Fac Low Low Dat Pro Fac Ext Cet Arc Hub Fac Upp Upp War Pro Res Qua Sec Res Acc Machines Accessed 100 | . 10 . 4 1 10 12 19 1 1 . . 6 . 1 3 . 10 . 1 . 1 7 1 . 3 . . 5 1 3 . Terminals 36 | . 7 . . 1 5 9 10 . . . . . . 1 . . . . 1 . . . . . . . . 2 . . . Fabricators 17 | . . . . . . . 5 . . . . 2 . . . . 4 . . . . 4 . . . . . . . 2 . Repair Stations 9 | . 1 . . . 1 . 1 . . . . . . . . . 3 . . . . 1 . . . . . 1 1 . . Recycling Units 6 | . 2 . . . 2 2 . . . . . . . . . . . . . . . . . . . . . . . . . Scanalyzers 5 | . . . . . 1 . 1 . . . . 1 . . . . . . . . . 1 . . . . . 1 . . . Garrison Access 14 | . . . . . 1 1 2 . . . . 3 . . . . 3 . . . 1 1 . . . . . 1 . 1 . Total Hacks 265 | . 25 . 4 4 45 31 48 1 1 . . 11 . 3 22 . 29 . 3 . 2 17 1 . 4 . . 6 1 7 . Successful 173 | . 16 . 4 2 32 16 30 1 1 . . 8 . 3 22 . 17 . 1 . 1 9 1 . 4 . . 2 1 2 . Failed 92 | . 9 . . 2 13 15 18 . . . . 3 . . . . 12 . 2 . 1 8 . . . . . 4 . 5 . Catastrophic 12 | . 1 . . . 1 1 1 . . . . . . . . . 2 . 1 . . . . . . . . 2 . 3 . Database Lockouts . | . . . . . . . . . . . . . . . . . . . . . . . . . . . . . . . . Manual 230 | . 15 . . 2 17 8 22 . . . . 12 . . . . 39 6 1 . 13 30 . . 1 . 17 12 6 22 7 Terminals 112 | . 22 . . 4 24 27 26 . . . . . . 3 . . . . 3 . . . . . . . . 3 . . . Fabricators 53 | . . . . . . . 15 . . . . 6 . . . . 16 . . . . 11 . . . . . . . 5 . Repair Stations 15 | . 1 . . . 2 . 2 . . . . . . . . . 5 . . . . 3 . . . . . 1 1 . . Recycling Units 6 | . 2 . . . 2 2 . . . . . . . . . . . . . . . . . . . . . . . . . Scanalyzers 20 | . . . . . 15 . 2 . . . . 1 . . . . . . . . . 1 . . . . . 1 . . . Garrison Access 26 | . . . . . 2 2 3 . . . . 4 . . . . 8 . . . 2 2 . . . . . 1 . 2 . Terminal Hacks 76 | . 10 . 4 2 9 11 5 1 1 . . . . 3 22 . . . 1 . . . 1 . 4 . . 2 . . . Record 19 | . . . 4 2 . . . . . . . . . 3 6 . . . . . . . . . 2 . . 2 . . . Part Schematic 14 | . . . . . . 3 . . . . . . . . 11 . . . . . . . . . . . . . . . . Robot Schematic 2 | . . . . . . . . . . . . . . . 2 . . . . . . . . . . . . . . . . Robot Analysis 6 | . 5 . . . . 1 . . . . . . . . . . . . . . . . . . . . . . . . . Prototype ID Bank 10 | . 2 . . . 3 2 . . . . . . . . 3 . . . . . . . . . . . . . . . . Open Door 7 | . . . . . . 1 . 1 1 . . . . . . . . . 1 . . . 1 . 2 . . . . . . Branch Access Points 3 | . 1 . . . 1 . 1 . . . . . . . . . . . . . . . . . . . . . . . . Emergency Access Points 1 | . . . . . . 1 . . . . . . . . . . . . . . . . . . . . . . . . . Terminal Index 2 | . . . . . 1 . 1 . . . . . . . . . . . . . . . . . . . . . . . . Alert Level 1 | . . . . . 1 . . . . . . . . . . . . . . . . . . . . . . . . . . Unreport Threat 3 | . . . . . 2 . 1 . . . . . . . . . . . . . . . . . . . . . . . . Locate Traps 4 | . . . . . 1 1 2 . . . . . . . . . . . . . . . . . . . . . . . . Hauler Manifests 1 | . . . . . . 1 . . . . . . . . . . . . . . . . . . . . . . . . . Zone Layout 3 | . 2 . . . . 1 . . . . . . . . . . . . . . . . . . . . . . . . . Fabricator Hacks 28 | . . . . . . . 10 . . . . 4 . . . . 9 . . . . 4 . . . . . . . 1 . Network Status 2 | . . . . . . . 1 . . . . . . . . . . . . . . . . . . . . . . 1 . Load Schematic 16 | . . . . . . . 6 . . . . 2 . . . . 6 . . . . 2 . . . . . . . . . Build 10 | . . . . . . . 3 . . . . 2 . . . . 3 . . . . 2 . . . . . . . . . Repair Station Hacks 11 | . . . . . 2 . 2 . . . . . . . . . 4 . . . . 2 . . . . . . 1 . . Scan Component 7 | . . . . . 1 . 1 . . . . . . . . . 3 . . . . 1 . . . . . . 1 . . Repair 4 | . . . . . 1 . 1 . . . . . . . . . 1 . . . . 1 . . . . . . . . . Recycling Unit Hacks . | . . . . . . . . . . . . . . . . . . . . . . . . . . . . . . . . Scanalyzer 15 | . . . . . 15 . . . . . . . . . . . . . . . . . . . . . . . . . . Insert Component 7 | . . . . . 7 . . . . . . . . . . . . . . . . . . . . . . . . . . Analyze 8 | . . . . . 8 . . . . . . . . . . . . . . . . . . . . . . . . . . Garrison Access Hacks 9 | . . . . . 1 1 1 . . . . 2 . . . . 2 . . . 1 1 . . . . . . . . . Seal Access 9 | . . . . . 1 1 1 . . . . 2 . . . . 2 . . . 1 1 . . . . . . . . . Unauthorized Hacks 34 | . 6 . . . 5 4 12 . . . . 2 . . . . 2 . . . . 2 . . . . . . . 1 . Terminals 15 | . 3 . . . 3 2 7 . . . . . . . . . . . . . . . . . . . . . . . . Assimilate 3 | . . . . . . . 3 . . . . . . . . . . . . . . . . . . . . . . . . Botnet 7 | . 2 . . . 2 1 2 . . . . . . . . . . . . . . . . . . . . . . . . Detonate 1 | . . . . . . . 1 . . . . . . . . . . . . . . . . . . . . . . . . Operators 4 | . 1 . . . 1 1 1 . . . . . . . . . . . . . . . . . . . . . . . . Fabricators 11 | . . . . . . . 4 . . . . 2 . . . . 2 . . . . 2 . . . . . . . 1 . Prioritize 1 | . . . . . . . . . . . . 1 . . . . . . . . . . . . . . . . . . . Liberate 1 | . . . . . . . . . . . . . . . . . . . . . . . . . . . . . . 1 . Fabnet 2 | . . . . . . . 1 . . . . . . . . . . . . . . 1 . . . . . . . . . Recompile 7 | . . . . . . . 3 . . . . 1 . . . . 2 . . . . 1 . . . . . . . . . Repair Stations 1 | . 1 . . . . . . . . . . . . . . . . . . . . . . . . . . . . . . Mechanics 1 | . 1 . . . . . . . . . . . . . . . . . . . . . . . . . . . . . . Recycling Units 6 | . 2 . . . 2 2 . . . . . . . . . . . . . . . . . . . . . . . . . Tunnel 6 | . 2 . . . 2 2 . . . . . . . . . . . . . . . . . . . . . . . . . Scanalyzers 1 | . . . . . . . 1 . . . . . . . . . . . . . . . . . . . . . . . . Researchers 1 | . . . . . . . 1 . . . . . . . . . . . . . . . . . . . . . . . . Garrison Access . | . . . . . . . . . . . . . . . . . . . . . . . . . . . . . . . . Data Cores Recovered . | . . . . . . . . . . . . . . . . . . . . . . . . . . . . . . . . Used . | . . . . . . . . . . . . . . . . . . . . . . . . . . . . . . . . Hacking Detections 62 | . 8 . . 1 8 7 15 . . . . 3 . 1 . . 5 . 1 . 1 5 . . . . . 3 1 3 . Full Trace Events 7 | . . . . 1 1 1 . . . . . . . 1 . . 3 . . . . . . . . . . . . . . Feedback Events . | . . . . . . . . . . . . . . . . . . . . . . . . . . . . . . . . Feedback Blocked . | . . . . . . . . . . . . . . . . . . . . . . . . . . . . . . . . Robot Schematics Acquired 14 | . . . . . . . . . . 4 . . . . 2 . . . . . . . . . . . 4 4 . . . Robots Built 5 | . . . . . . . . . . . . . . . . . 2 . . . . 3 . . . . . . . . . Authchips . | . . . . . . . . . . . . . . . . . . . . . . . . . . . . . . . . Time 280 | . . . . . . . . . . . . . . . . . 111 . . . . 169 . . . . . . . . . Total Robot Build Rating 36 | . . . . . . . . . . . . . . . . . 18 . . . . 18 . . . . . . . . . Part Schematics Acquired 156 | . . . . . 7 3 . . . 15 . 10 . . 11 . 29 . . . 9 43 . . . . 10 19 . . . Parts Built 11 | . . . . . . . 5 . . . . 2 . . . . 3 . . . . 1 . . . . . . . . . Authchips 7 | . . . . . . . 3 . . . . 1 . . . . 2 . . . . 1 . . . . . . . . . Time 466 | . . . . . . . 141 . . . . 134 . . . . 129 . . . . 62 . . . . . . . . . Total Part Build Rating 61 | . . . . . . . 25 . . . . 12 . . . . 17 . . . . 7 . . . . . . . . . Parts Repaired 4 | . . . . . 1 . 1 . . . . . . . . . 1 . . . . 1 . . . . . . . . . Time 145 | . . . . . 70 . 22 . . . . . . . . . 25 . . . . 28 . . . . . . . . . Parts Recycled . | . . . . . . . . . . . . . . . . . . . . . . . . . . . . . . . . Recycled Matter . | . . . . . . . . . . . . . . . . . . . . . . . . . . . . . . . . Retrieved Matter . | . . . . . . . . . . . . . . . . . . . . . . . . . . . . . . . . Retrieved Components . | . . . . . . . . . . . . . . . . . . . . . . . . . . . . . . . . Parts Scanalyzed 7 | . . . . . 7 . . . . . . . . . . . . . . . . . . . . . . . . . . Part Schematics Acquired 7 | . . . . . 7 . . . . . . . . . . . . . . . . . . . . . . . . . . Parts Damaged 1 | . . . . . 1 . . . . . . . . . . . . . . . . . . . . . . . . . . Bothacking | -11 -10 -10 -10 -9 -8 -8 -7 -7 -7 -7 -6 -6 -6 -6 -6 -5 -5 -5 -5 -5 -5 -4 -4 -4 -4 -3 -3 -3 -3 -2 -1 ------------ Run | Scr Mat Min Exi Min Mat Sto Fac Low Low Zio Pro Fac Low Low Dat Pro Fac Ext Cet Arc Hub Fac Upp Upp War Pro Res Qua Sec Res Acc Used RIF Installer . | . . . . . . . . . . . . . . . . . . . . . . . . . . . . . . . . Robots Hacked 6 | . . . . . . . . . . . . 1 . . . . . 1 . 3 1 . . . . . . . . . . Non-combat 3 | . . . . . . . . . . . . . . . . . . . . 3 . . . . . . . . . . . Combat 3 | . . . . . . . . . . . . 1 . . . . . 1 . . 1 . . . . . . . . . . Robot Hacks Applied 3 | . . . . . . . . . . . . . . . . . . . . 3 . . . . . . . . . . . check_alert 3 | . . . . . . . . . . . . . . . . . . . . 3 . . . . . . . . . . . Relay Couplers Released 2 | . . . . . . . . . . . . . . . . . 1 . . . . . . . . . . 1 . . . Machine Destruction 2 | . . . . . . . . . . . . . . . . . 1 . . . . . . . . . . 1 . . . Fabnet Peak Effective % 3 | . . . . . . . . . . . 3 3 3 3 3 1 1 1 1 1 1 . . . . 3 3 3 3 1 . Autooverrided 3 | . . . . . . . . . . . . 1 . . . . . 1 . . 1 . . . . . . . . . . Robots Rewired 11 | . . . . . . . . . . . . . . . . 1 . 10 . . . . . . . . . . . . . Allies Hacked 3 | . . . . . . . . . . . . 1 . . . . . . . . 1 1 . . . . . . . . . Hacks Repelled . | . . . . . . . . . . . . . . . . . . . . . . . . . . . . . . . . Allies | -11 -10 -10 -10 -9 -8 -8 -7 -7 -7 -7 -6 -6 -6 -6 -6 -5 -5 -5 -5 -5 -5 -4 -4 -4 -4 -3 -3 -3 -3 -2 -1 -------- Run | Scr Mat Min Exi Min Mat Sto Fac Low Low Zio Pro Fac Low Low Dat Pro Fac Ext Cet Arc Hub Fac Upp Upp War Pro Res Qua Sec Res Acc Total Allies 99 | . . . . 3 . 10 3 . . 6 . 5 . . . 2 5 31 5 . 8 9 . . . . 4 . . 5 3 Largest Group 20 | . . . . 3 . 10 2 . . 6 6 9 . . . 1 3 20 18 18 20 5 . . . . 4 3 . 3 2 Highest-Rated Group 1032 | . . . . 40 . 173 36 . . 207 207 423 . . . 96 210 794 1032 1032 976 308 . . . . 502 475 . 345 269 Highest-Rated Ally 269 | . . . . 16 . 29 26 . . 41 41 99 . . . 96 70 159 159 146 96 96 . . . . 269 269 . 115 269 Zionite Dispatches 17 | . . . . . . . . . . . . 1 . . . . 1 2 . . 2 3 . . . . 3 . . 3 2 Heavy 2 | . . . . . . . . . . . . . . . . . . 1 . . . . . . . . 1 . . . . Light 5 | . . . . . . . . . . . . 1 . . . . 1 . . . 1 1 . . . . . . . 1 . Fire 1 | . . . . . . . . . . . . . . . . . . . . . 1 . . . . . . . . . . Demo 2 | . . . . . . . . . . . . . . . . . . . . . . 1 . . . . . . . . 1 Experimental 2 | . . . . . . . . . . . . . . . . . . . . . . . . . . . 1 . . . 1 Infowar Resupply 3 | . . . . . . . . . . . . . . . . . . . . . . 1 . . . . . . . 2 . Hover Resupply 2 | . . . . . . . . . . . . . . . . . . 1 . . . . . . . . 1 . . . . Total Orders 9 | . . . . . . . . . . . . . . . . . . 2 . . . 2 . . . . 2 . . 3 . STAY 4 | . . . . . . . . . . . . . . . . . . 1 . . . 1 . . . . 1 . . 1 . DROP 5 | . . . . . . . . . . . . . . . . . . 1 . . . 1 . . . . 1 . . 2 . Ally Attacks 652 | . . . . 11 . 88 . . . . . 68 . . . 9 33 155 41 17 118 57 . . . . . 45 . 6 4 Total Damage 21369 | . . . . 104 . 1188 . . . . . 1792 . . . 254 1160 4050 977 425 4275 2942 . . . . . 3817 . 223 162 Kills 149 | . . . . 2 . 12 . . . . . 12 . . . 1 12 36 5 4 26 17 . . . . . 21 . . 1 Allies Corrupted 9 | . . . . . . . . . . . . 3 . . . . . 4 . . . 1 . . . . . . . 1 . Allies Melted . | . . . . . . . . . . . . . . . . . . . . . . . . . . . . . . . . Intel | -11 -10 -10 -10 -9 -8 -8 -7 -7 -7 -7 -6 -6 -6 -6 -6 -5 -5 -5 -5 -5 -5 -4 -4 -4 -4 -3 -3 -3 -3 -2 -1 ------- Run | Scr Mat Min Exi Min Mat Sto Fac Low Low Zio Pro Fac Low Low Dat Pro Fac Ext Cet Arc Hub Fac Upp Upp War Pro Res Qua Sec Res Acc Robot Analysis Total 6 | . 5 . . . . 1 . . . . . . . . . . . . . . . . . . . . . . . . . Derelict Logs Recovered 11 | . . 1 . 2 . . . . 1 1 1 . 1 . . 3 . . . . . . 1 . . . . . . . . Drone Launches . | . . . . . . . . . . . . . . . . . . . . . . . . . . . . . . . . Drone Recoveries . | . . . . . . . . . . . . . . . . . . . . . . . . . . . . . . . . Zionite Intel Received 29 | . . . . . . . . . . . . 2 . . . . 9 . . . 2 5 . . . . 3 3 1 3 1 Branch Access 1 | . . . . . . . . . . . . 1 . . . . . . . . . . . . . . . . . . . Emergency Access 1 | . . . . . . . . . . . . . . . . . . . . . . 1 . . . . . . . . . Guard Positions 1 | . . . . . . . . . . . . . . . . . . . . . . . . . . . . . 1 . . Component Stockpiles 1 | . . . . . . . . . . . . . . . . . 1 . . . . . . . . . . . . . . Prototype Stockpiles 1 | . . . . . . . . . . . . . . . . . 1 . . . . . . . . . . . . . . Component Schematics 2 | . . . . . . . . . . . . . . . . . . . . . . 2 . . . . . . . . . Prototype Schematics 8 | . . . . . . . . . . . . 1 . . . . 3 . . . 1 1 . . . . 1 1 . . . Unaware Schematics 1 | . . . . . . . . . . . . . . . . . . . . . . . . . . . 1 . . . . Unaware Analyses 3 | . . . . . . . . . . . . . . . . . 1 . . . . . . . . . . 1 . 1 . Trap Installations 3 | . . . . . . . . . . . . . . . . . 1 . . . . . . . . . . 1 . 1 . Active Terminals 2 | . . . . . . . . . . . . . . . . . . . . . . 1 . . . . . . . . 1 Active Garrisons 3 | . . . . . . . . . . . . . . . . . 1 . . . . . . . . . 1 . . 1 . Depthwide Sectors/-1 2 | . . . . . . . . . . . . . . . . . 1 . . . 1 . . . . . . . . . . Exploration | -11 -10 -10 -10 -9 -8 -8 -7 -7 -7 -7 -6 -6 -6 -6 -6 -5 -5 -5 -5 -5 -5 -4 -4 -4 -4 -3 -3 -3 -3 -2 -1 ------------- Run | Scr Mat Min Exi Min Mat Sto Fac Low Low Zio Pro Fac Low Low Dat Pro Fac Ext Cet Arc Hub Fac Upp Upp War Pro Res Qua Sec Res Acc Turns Passed 23177 | . 943 838 549 917 2040 2426 1308 695 652 880 283 1670 210 215 63 388 1381 1076 223 1072 451 1256 124 378 414 292 465 431 173 1127 237 Spaces Moved 23202 | 1 605 575 419 516 800 912 1901 981 804 1278 376 2012 298 267 93 398 1647 801 190 196 551 1883 303 669 909 581 657 746 267 1236 330 Core . | . . . . . . . . . . . . . . . . . . . . . . . . . . . . . . . . Treads 1377 | . . . . . 465 912 . . . . . . . . . . . . . . . . . . . . . . . . . Legs 63 | 1 62 . . . . . . . . . . . . . . . . . . . . . . . . . . . . . . Wheels 2388 | . 543 575 419 516 335 . . . . . . . . . . . . . . . . . . . . . . . . . . Hover 19374 | . . . . . . . 1901 981 804 1278 376 2012 298 267 93 398 1647 801 190 196 551 1883 303 669 909 581 657 746 267 1236 330 Flight . | . . . . . . . . . . . . . . . . . . . . . . . . . . . . . . . . Fastest Speed 23 | 120 120 130 130 130 102 232 48 60 60 60 60 58 64 64 64 64 58 55 55 50 50 41 41 41 41 43 33 23 23 31 30 Average Speed 71 | 120 128 130 130 144 185 234 54 60 63 60 60 60 64 65 64 64 59 55 55 70 50 45 41 41 41 43 35 33 38 49 31 Slowest Speed 243 | 120 130 130 130 175 243 242 68 60 127 60 60 64 64 134 64 64 64 60 55 115 50 50 41 41 102 43 41 93 93 106 36 Overloaded Moves 68 | . . . . . . . . . . . . . . . . . . . . . . . . . . . . 42 26 . . Propulsion Burnouts . | . . . . . . . . . . . . . . . . . . . . . . . . . . . . . . . . Robots Hopped . | . . . . . . . . . . . . . . . . . . . . . . . . . . . . . . . . Cave-ins Triggered . | . . . . . . . . . . . . . . . . . . . . . . . . . . . . . . . . Exploration Rate (%) 65 | 2 95 99 91 98 69 97 49 76 89 91 59 49 59 47 74 67 51 86 74 93 66 47 58 84 94 73 22 65 19 36 17 Regions Visited 31 Branch Regions 22 Pre-discovered Areas 18 | . 2 1 . . 2 2 . . . . . . . . 1 . 5 . . . 5 . . . . . . . . . . Known Exits Taken 24 | . 1 . . . 1 . 1 1 1 1 1 1 1 1 1 1 1 1 1 1 1 1 1 1 1 1 1 1 . . . Unknown Exits Taken 7 | 1 . 1 1 1 . 1 . . . . . . . . . . . . . . . . . . . . . . 1 1 . Scrap Searched 31 | . . 1 . 4 . . . 2 1 2 1 . 7 5 . 1 . . . . . . 3 2 . 2 . . . . . Spaces Dug 276 | . . . . . . . 29 24 4 . 25 33 10 1 . 12 40 4 . . 1 19 . 1 2 5 10 8 1 23 24 Terrain Destroyed 1258 | . . . . 18 23 . 101 83 139 . 54 126 28 1 . 43 46 30 108 . 322 23 . 1 2 5 13 11 1 23 57 Melee 157 | . . . . . . . 16 9 1 . 1 16 . 1 . . 34 . . . 1 17 . 1 2 5 10 8 1 22 12 Projectile 44 | . . . . . . . . . 7 . 1 4 1 . . 5 12 . 1 . . 6 . . . . 3 3 . 1 . AOE 1057 | . . . . 18 23 . 85 74 131 . 52 106 27 . . 38 . 30 107 . 321 . . . . . . . . . 45 Terrain Rammed . | . . . . . . . . . . . . . . . . . . . . . . . . . . . . . . . . Walls Destroyed . | . . . . . . . . . . . . . . . . . . . . . . . . . . . . . . . . Machines Disabled . | . . . . . . . . . . . . . . . . . . . . . . . . . . . . . . . . Actions | -11 -10 -10 -10 -9 -8 -8 -7 -7 -7 -7 -6 -6 -6 -6 -6 -5 -5 -5 -5 -5 -5 -4 -4 -4 -4 -3 -3 -3 -3 -2 -1 --------- Run | Scr Mat Min Exi Min Mat Sto Fac Low Low Zio Pro Fac Low Low Dat Pro Fac Ext Cet Arc Hub Fac Upp Upp War Pro Res Qua Sec Res Acc Total 28175 | . 706 642 423 600 1129 1091 2104 1062 886 1386 427 2315 307 290 96 506 1934 1391 296 1118 665 2188 302 755 944 601 841 879 316 1561 414 Wait 3016 | . 32 54 5 8 113 58 29 38 21 85 48 139 . 7 . 49 157 483 92 899 55 183 . 71 . 2 119 82 22 139 26 Move 23171 | . 604 574 418 515 799 911 1900 980 803 1277 375 2011 297 266 92 397 1646 800 189 195 550 1882 302 668 908 580 656 745 266 1235 330 Hop . | . . . . . . . . . . . . . . . . . . . . . . . . . . . . . . . . Pick Up 179 | . 19 1 . 7 29 8 16 7 1 4 . 22 1 . . 2 9 7 . 2 2 12 . . 4 . 9 2 . 13 2 Fast Attach 132 | . 4 . . 1 13 13 9 . 3 6 . 14 . 2 2 1 11 . 1 2 1 4 . . 7 . 3 2 6 21 6 Attach 91 | . . . . 13 13 . 12 7 2 2 . 9 . . . 1 5 2 1 . . 6 . . 2 . 3 1 2 6 4 Detach 16 | . 2 . . . 3 . 3 . . 1 . 1 . . . . 1 . 1 . . 1 . . . . . . 1 2 . Swap 215 | . 4 . . 9 11 6 12 5 3 . . 9 2 5 . 4 16 9 2 3 11 29 . 9 5 11 14 14 5 15 2 Drop 268 | . 6 . . . 29 25 34 9 4 8 . 27 1 2 2 3 17 5 . 5 6 14 . . 16 . 11 5 4 24 11 Fire 470 | . 35 13 . 46 119 69 1 7 48 . 3 18 4 . . 17 19 10 10 1 13 12 . 1 . . 3 5 1 5 10 Melee 485 | . . . . 1 . . 49 9 1 3 1 61 2 8 . 4 53 20 . 11 27 40 . 6 2 8 23 23 9 101 23 Ram . | . . . . . . . . . . . . . . . . . . . . . . . . . . . . . . . . Kick . | . . . . . . . . . . . . . . . . . . . . . . . . . . . . . . . . Crush 1 | . . . . . . 1 . . . . . . . . . . . . . . . . . . . . . . . . . Escape Stasis 51 | . . . . . . . 39 . . . . 4 . . . . . 8 . . . . . . . . . . . . . Rewire 75 | . . . . . . . . . . . . . . . . 28 . 47 . . . . . . . . . . . . . Trap 5 | . . . . . . . . . . . . . . . . . . . . . . 5 . . . . . . . . . Miscellaneous . | . . . . . . . . . . . . . . . . . . . . . . . . . . . . . . . . Route ------- -11/Scrapyard -10/Materials (discovered 4 exits: [*Mat x3] / *Min) -10/Mines (discovered 3 exits: [*Mat x2] / *Exi) -10/Exiles -9/Mines (discovered 2 exits: *Mat x2) -8/Materials (discovered 4 exits: *Fac x2 / *Sto x2) -8/Storage -7/Factory (discovered 4 exits: *Fac x2 / *Low x2) -7/Lower Caves -7/Lower Caves (discovered 2 exits: *Fac / *Zio) -7/Zion -6/Proximity Caves -6/Factory (discovered 5 exits: *Fac x3 / *Low x2) -6/Lower Caves -6/Lower Caves -6/Data Miner -5/Proximity Caves -5/Factory (discovered 5 exits: *Fac x2 / *Upp x2 / *Ext) -5/Extension (discovered 2 exits: *Fac / *Cet) -5/Cetus (discovered 2 exits: *Fac / *Arc) -5/Archives (discovered 3 exits: *Fac / *Hub x2) -5/Hub_04(d) (discovered 3 exits: *Fac x3) -4/Factory (discovered 2 exits: *Res / *Upp) -4/Upper Caves -4/Upper Caves (discovered 2 exits: *Res / *War) -4/Warlord -3/Proximity Caves -3/Research -3/Quarantine -3/Section 7 -2/Research -1/Access History --------- Turn | Location | Event 1 | -11/Scrapyard | Discovered new exit (range 0) 1 | -11/Scrapyard | Entered Materials 237 | -10/Materials | Discovered new exit (range 4) 305 | -10/Materials | Build established: Mutant 550 | -10/Materials | Identified exit to Mines 550 | -10/Materials | Discovered new exit (range 15) 769 | -10/Materials | Discovered new exit (range 8) 944 | -10/Materials | Entered Mines 964 | -10/Mines | Met a Derelict bent on vengeance 985 | -10/Mines | Learned Materials emergency access door positions 1234 | -10/Mines | Discovered new exit (range 6) 1282 | -10/Mines | Learned location of Storage (-8) 1335 | -10/Mines | Discovered new exit (range 6) 1382 | -10/Mines | Deemed a non-threat by the Exiles lab entrance 1382 | -10/Mines | Discovered new exit (range 5) 1782 | -10/Mines | Entered Exiles 1782 | -10/Exiles | Found Exiles lab abandoned 2321 | -10/Exiles | Discovered new exit (range 10) 2331 | -10/Exiles | Entered Mines 2350 | -9/Mines | Learned Materials stockpile data 2367 | -9/Mines | Learned Materials stockpile data 2394 | -9/Mines | Assembled infested the area 2399 | -9/Mines | Assisted by a Guerilla fighting off Assembled 2503 | -9/Mines | Lost 6 parts (1n2u3w) 2536 | -9/Mines | Destroyed 10 combat bots 2551 | -9/Mines | Core integrity fell below 50% 2579 | -9/Mines | Lost 7 parts (2p3n2w) 2743 | -9/Mines | Discovered new exit (range 10) 2797 | -9/Mines | Discovered new exit (range 15) 2801 | -9/Mines | A weapon hastily lodged in a ceiling crevice suddenly fell to the ground 2831 | -9/Mines | Assisted by bots powering up and referring to "LRC-V3" 2898 | -9/Mines | Build established: Scavenger-Mutant 3248 | -9/Mines | Entered Materials 3248 | -8/Materials | Evolved 4 slots: Propulsion x2, Utility x2 3511 | -8/Materials | Discovered new exit (range 16) 3549 | -8/Materials | Discovered new exit (range 12) 3883 | -8/Materials | Repaired Broken Cmb. Airjet 4034 | -8/Materials | Build established: Mutant 4290 | -8/Materials | Discovered new exit (range 12) 4533 | -8/Materials | Identified exit to Storage 5055 | -8/Materials | Build established: Scavenger-Mutant 5288 | -8/Materials | Entered Storage 5776 | -8/Storage | Build established: Mutant 5856 | -8/Storage | Assisted by bots powering up and referring to "LRC-V3" 6170 | -8/Storage | Build established: Commander-Mutant 6210 | -8/Storage | Discovered new exit (range 16) 6483 | -8/Storage | Core integrity fell below 50% 6606 | -8/Storage | Garrison activated, responded to threat 6785 | -8/Storage | Build established: Mutant 7714 | -8/Storage | Entered Factory 7714 | -7/Factory | Evolved 2 slots: Utility x2 7764 | -7/Factory | Identified exit to Lower Caves 7858 | -7/Factory | Discovered new exit (range 12) 8010 | -7/Factory | Build established: Scout 8267 | -7/Factory | Discovered new exit (range 8) 8287 | -7/Factory | Identified exit to Factory 8336 | -7/Factory | Repaired Hvy. Rocket Launcher 8430 | -7/Factory | Fabricated Cmb. Airjet? 8683 | -7/Factory | Fabricated Adv. Sensor Array (x1) 8778 | -7/Factory | Fabricated Cmb. Airjet (x2) 9022 | -7/Factory | Entered Lower Caves 9087 | -7/Lower Caves | Build established: Machinist-Scout 9347 | -7/Lower Caves | Attracted the attention of an 0b10 checkpoint 9584 | -7/Lower Caves | Spotted B-75 Beast 9683 | -7/Lower Caves | Discovered new exit (range 13) 9692 | -7/Lower Caves | Identified exit to Lower Caves 9701 | -7/Lower Caves | Found Prototype Device 9717 | -7/Lower Caves | Entered another Lower Caves area 9728 | -7/Lower Caves | Discovered exit to Factory (range 10) 9944 | -7/Lower Caves | Attracted the attention of an 0b10 checkpoint 10177 | -7/Lower Caves | Found Alien Artifact 10177 | -7/Lower Caves | Identified Core Expander 10177 | -7/Lower Caves | Installed Core Expander, added new Weapon slot 10326 | -7/Lower Caves | Discovered new exit (range 6) 10329 | -7/Lower Caves | Identified exit to Zion 10369 | -7/Lower Caves | Entered Zion 10389 | -7/Zion | Discovered new exit (range 18) 10495 | -7/Zion | Given A8's code to call for help 10519 | -7/Zion | Found CR-A16's Pointy Stick 10550 | -7/Zion | Given the Hacking Drone Bay 10776 | -7/Zion | Gained Derelict followers 10821 | -7/Zion | Identified Heart of Steel 10961 | -7/Zion | Imprinted 10963 | -7/Zion | Declared Zion's savior 11061 | -7/Zion | Found Prototype Special Weapon 11061 | -7/Zion | Identified RU-N14's Throwing Claymores 11063 | -7/Zion | Found RU-N14's Throwing Claymores 11065 | -7/Zion | Found RU-N14's Throwing Claymores 11067 | -7/Zion | Found RU-N14's Throwing Claymores 11171 | -7/Zion | Identified exit to Proximity Caves 11249 | -7/Zion | Entered Proximity Caves 11249 | -6/Proximity Caves | Accompanied by 6 allies 11310 | -6/Proximity Caves | Learned Factory machine intel 11449 | -6/Proximity Caves | Discovered exit to Factory (range 12) 11532 | -6/Proximity Caves | Entered Factory 11532 | -6/Factory | Accompanied by 6 allies 11532 | -6/Factory | Evolved 2 slots: Propulsion x1, Utility x1 11533 | -6/Factory | Identified exit to Lower Caves 11534 | -6/Factory | Loaded intel: 252 machine locations 11591 | -6/Factory | Retrieved Zion intel report: Prototype Schematics 11603 | -6/Factory | Discovered exit to Lower Caves (range 14) 11609 | -6/Factory | Retrieved Zion intel report: Branch Access 11610 | -6/Factory | Zion Light squad teleported in 11792 | -6/Factory | Fabricated Force Lance (x1) 11847 | -6/Factory | Local machine network offline 11869 | -6/Factory | Fabricated F-cell Engine? 11917 | -6/Factory | Discovered new exit (range 5) 11921 | -6/Factory | Identified exit to Factory 12113 | -6/Factory | Found Prototype Protection 12113 | -6/Factory | Identified Zio. Weapon Casing 12291 | -6/Factory | Build established: Machinist-Mutant 12403 | -6/Factory | Discovered exit to Factory (range 9) 12913 | -6/Factory | Heart of Steel transformed into Warbot 12969 | -6/Factory | Spotted B-75 Beast 12976 | -6/Factory | Allies destroyed B-75 Beast 13000 | -6/Factory | Found Prototype Launcher 13000 | -6/Factory | Identified Scatter Rocket Array 13168 | -6/Factory | Discovered exit to Factory (range 12) 13202 | -6/Factory | Entered Lower Caves 13203 | -6/Lower Caves | Encountered a Warlord checkpoint 13365 | -6/Lower Caves | Learned Factory terminal intel 13398 | -6/Lower Caves | Discovered new exit (range 11) 13411 | -6/Lower Caves | Identified exit to Lower Caves 13412 | -6/Lower Caves | Entered another Lower Caves area 13450 | -6/Lower Caves | Spotted B-75 Beast 13493 | -6/Lower Caves | Revealed the true nature of CR-A16's Pointy Stick 13496 | -6/Lower Caves | Destroyed B-75 Beast 13617 | -6/Lower Caves | Discovered new exit (range 13) 13621 | -6/Lower Caves | Attracted the attention of an 0b10 base 13621 | -6/Lower Caves | Learned Research security intel 13621 | -6/Lower Caves | Learned Extension stockpile data 13621 | -6/Lower Caves | Learned Armory emergency access door positions 13627 | -6/Lower Caves | Identified exit to Data Miner 13627 | -6/Lower Caves | Entered Data Miner 13628 | -6/Data Miner | Discovered new exit (range 7) 13637 | -6/Data Miner | Met Data Miner 13657 | -6/Data Miner | Learned location of Section 7 (-3) 13657 | -6/Data Miner | Acquired the access code to Warlord's prototype stash 13663 | -6/Data Miner | Received God Mode back door access code from Data Miner 13690 | -6/Data Miner | Identified exit to Proximity Caves 13690 | -6/Data Miner | Entered Proximity Caves 13723 | -5/Proximity Caves | Spotted B-75 Beast 13728 | -5/Proximity Caves | Escorted by Enhanced Grunt 13748 | -5/Proximity Caves | Destroyed B-75 Beast 13762 | -5/Proximity Caves | Attracted the attention of an 0b10 outpost 13787 | -5/Proximity Caves | Destroyed 8 combat bots 13815 | -5/Proximity Caves | Build established: Scavenger-Scout 14075 | -5/Proximity Caves | Learned Factory emergency access door positions 14078 | -5/Proximity Caves | Entered Factory 14078 | -5/Factory | Evolved 2 slots: Propulsion x1, Utility x1 14079 | -5/Factory | Identified exit to Upper Caves 14081 | -5/Factory | Loaded intel: 28 terminal locations 14121 | -5/Factory | Incoming investigation squad redirected 14182 | -5/Factory | Repaired Cmb. Airjet 14244 | -5/Factory | Discovered exit to Upper Caves (range 11) 14335 | -5/Factory | Retrieved Zion intel report: Trap Installations 14340 | -5/Factory | Retrieved Zion intel report: Prototype Schematics 14439 | -5/Factory | Incoming investigation squad redirected 14645 | -5/Factory | Fabricated Lgt. Regenerative Plating (x1) 14664 | -5/Factory | Incoming investigation squad redirected 14701 | -5/Factory | Retrieved Zion intel report: Active Garrisons 14763 | -5/Factory | Retrieved Zion intel report: Depthwide Sectors/-1 14764 | -5/Factory | Zion Light squad teleported in 14836 | -5/Factory | Discovered new exit (range 4) 14842 | -5/Factory | Build established: Machinist-Scout 14850 | -5/Factory | Identified exit to Factory 14878 | -5/Factory | Retrieved Zion intel report: Prototype Stockpiles 14938 | -5/Factory | Fabricated Cmb. Gravmag System (x2) 15033 | -5/Factory | Discovered exit to Factory (range 11) 15049 | -5/Factory | Retrieved Zion intel report: Unaware Analyses 15066 | -5/Factory | Fabricated H-88 Terminator? 15107 | -5/Factory | Retrieved Zion intel report: Prototype Schematics 15125 | -5/Factory | Retrieved Zion intel report: Component Stockpiles 15138 | -5/Factory | Retrieved Zion intel report: Prototype Schematics 15424 | -5/Factory | Discovered new exit (range 13) 15430 | -5/Factory | Identified exit to Extension 15459 | -5/Factory | Entered Extension 15459 | -5/Extension | Accompanied by 2 allies 15553 | -5/Extension | Zion Hover Resupply teleported in 15567 | -5/Extension | Rescued a captive Derelict 15567 | -5/Extension | Rescued a captive Derelict 15623 | -5/Extension | Rescued a captive Derelict 15719 | -5/Extension | Rescued a captive Derelict 15751 | -5/Extension | Rescued a captive Derelict 15778 | -5/Extension | Rescued a captive Derelict 15992 | -5/Extension | Spotted B-75 Beast 16080 | -5/Extension | Allies destroyed B-75 Beast 16083 | -5/Extension | Spotted B-75 Beast 16108 | -5/Extension | Destroyed B-75 Beast 16109 | -5/Extension | Disrupted transfer network 16132 | -5/Extension | Zion Heavy squad teleported in 16205 | -5/Extension | Rescued a captive Derelict 16219 | -5/Extension | Rescued a captive Derelict 16221 | -5/Extension | Rescued a captive Derelict 16265 | -5/Extension | Rescued a captive Derelict 16271 | -5/Extension | Rescued a captive Derelict 16272 | -5/Extension | Rescued a captive Derelict 16272 | -5/Extension | Rescued a captive Derelict 16273 | -5/Extension | Rescued a captive Derelict 16274 | -5/Extension | Rescued a captive Derelict 16275 | -5/Extension | Rescued a captive Derelict 16278 | -5/Extension | Local machine network offline 16327 | -5/Extension | Rescued A7 16432 | -5/Extension | Build established: Commander-Scout 16484 | -5/Extension | Discovered exit to Factory (range 10) 16485 | -5/Extension | Discovered new exit (range 6) 16523 | -5/Extension | Identified exit to Cetus 16535 | -5/Extension | Entered Cetus 16535 | -5/Cetus | Accompanied by 16 allies (A7) 16540 | -5/Cetus | Acquired a Cetus Manufacturing Module code from A7 16542 | -5/Cetus | Spotted Cetus Guard 16543 | -5/Cetus | Spotted Cetus Guard 16547 | -5/Cetus | Spotted Cetus Guard 16548 | -5/Cetus | Spotted Cetus Guard 16550 | -5/Cetus | Allies destroyed Cetus Guard 16555 | -5/Cetus | Destroyed Cetus Guard 16559 | -5/Cetus | Allies destroyed Cetus Guard 16560 | -5/Cetus | Allies destroyed Cetus Guard 16581 | -5/Cetus | Started Cetus Manufacturing Module 16585 | -5/Cetus | Escorted A7 to Cetus Mainframe 16589 | -5/Cetus | Discovered new exit (range 22) 16605 | -5/Cetus | Spotted Cetus Guard 16605 | -5/Cetus | Spotted Cetus Guard 16605 | -5/Cetus | Spotted Cetus Guard 16606 | -5/Cetus | Manufactured an Enhanced Grunt 16612 | -5/Cetus | Spotted Cetus Guard 16613 | -5/Cetus | Destroyed Cetus Guard 16624 | -5/Cetus | Destroyed Cetus Guard 16629 | -5/Cetus | Allies destroyed Cetus Guard 16631 | -5/Cetus | Manufactured an Enhanced Grunt 16634 | -5/Cetus | Allies destroyed Cetus Guard 16636 | -5/Cetus | Discovered exit to Factory (range 21) 16641 | -5/Cetus | Found Prototype Protection 16641 | -5/Cetus | Identified Med. Regenerative Plating 16652 | -5/Cetus | Scared off Revision 17 16656 | -5/Cetus | Manufactured an Enhanced Grunt 16680 | -5/Cetus | Identified exit to Archives 16681 | -5/Cetus | Manufactured an Enhanced Grunt 16706 | -5/Cetus | Manufactured an Enhanced Grunt 16758 | -5/Cetus | Entered Archives 16758 | -5/Archives | Accompanied by 18 allies (A7) 16763 | -5/Archives | Received a hacking code to weaken MAIN.C 16781 | -5/Archives | Discovered new exit (range 22) 16789 | -5/Archives | Discovered new exit (range 22) 16858 | -5/Archives | Identified exit to Hub_04(d) 16919 | -5/Archives | Build established: Commander-Mutant 16938 | -5/Archives | Discovered exit to Factory (range 18) 17830 | -5/Archives | Entered Hub_04(d) 17830 | -5/Hub_04(d) | Accompanied by 17 allies 17832 | -5/Hub_04(d) | Zion Fire squad teleported in 17833 | -5/Hub_04(d) | Discovered exit to Factory (range 13) 18021 | -5/Hub_04(d) | Garrison activated, responded to threat 18024 | -5/Hub_04(d) | Discovered exit to Factory (range 21) 18144 | -5/Hub_04(d) | Retrieved Zion intel report: Prototype Schematics 18145 | -5/Hub_04(d) | Zion Light squad teleported in 18166 | -5/Hub_04(d) | Retrieved Zion intel report: Depthwide Sectors/-1 18197 | -5/Hub_04(d) | Discovered exit to Factory (range 3) 18241 | -5/Hub_04(d) | Network Hub disabled 18245 | -5/Hub_04(d) | Found Zio. Weapon Casing 18265 | -5/Hub_04(d) | Network Hub disabled 18281 | -5/Hub_04(d) | Entered Factory 18281 | -4/Factory | Evolved 2 slots: Power x1, Utility x1 18379 | -4/Factory | Incoming investigation squad redirected 18464 | -4/Factory | Spotted B-86 Titan 18614 | -4/Factory | Zion Light squad teleported in 18713 | -4/Factory | Retrieved Zion intel report: Prototype Schematics 18723 | -4/Factory | Retrieved Zion intel report: Active Terminals 18724 | -4/Factory | Zion Infowar Resupply teleported in 18814 | -4/Factory | First assault squad dispatched 18835 | -4/Factory | Fabricated B-60 Warrior? 18854 | -4/Factory | Build established: Scout 18998 | -4/Factory | Discovered new exit (range 5) 18999 | -4/Factory | Identified exit to Upper Caves 19015 | -4/Factory | Repaired Cmb. Gravmag System 19049 | -4/Factory | Incoming assault squad redirected 19115 | -4/Factory | Retrieved Zion intel report: Emergency Access 19122 | -4/Factory | Retrieved Zion intel report: Component Schematics 19190 | -4/Factory | Retrieved Zion intel report: Component Schematics 19191 | -4/Factory | Zion Demo squad teleported in 19247 | -4/Factory | Discovered new exit (range 3) 19248 | -4/Factory | Identified exit to Research 19323 | -4/Factory | Incoming assault squad redirected 19392 | -4/Factory | Build established: Messiah-Scout 19404 | -4/Factory | Fabricated Molecular Scythe (x1) 19537 | -4/Factory | Entered Upper Caves 19540 | -4/Upper Caves | Identified exit to Upper Caves 19629 | -4/Upper Caves | Encountered a Warlord checkpoint 19661 | -4/Upper Caves | Entered another Upper Caves area 19662 | -4/Upper Caves | Identified exit to Warlord 19726 | -4/Upper Caves | Discovered exit to Research (range 12) 19972 | -4/Upper Caves | Attracted the attention of an 0b10 checkpoint 20039 | -4/Upper Caves | Entered Warlord 20257 | -4/Warlord | Warlord's base attacked by MAIN.C 20291 | -4/Warlord | Met EX-DEC 20299 | -4/Warlord | Found Prototype Energy Cannon 20304 | -4/Warlord | Found Prototype Energy Cannon 20304 | -4/Warlord | Identified Vortex Cannon 20330 | -4/Warlord | Rebuked by Warlord 20339 | -4/Warlord | Opened Warlord's prototype stash 20345 | -4/Warlord | Found Prototype Device 20345 | -4/Warlord | Identified Thermal Barrier 20348 | -4/Warlord | Found Prototype Processor 20348 | -4/Warlord | Identified Exp. Armor Integrity Analyzer 20355 | -4/Warlord | Found Prototype Reactor 20355 | -4/Warlord | Identified Vortex Chain Reactor 20421 | -4/Warlord | Opened side exit 20447 | -4/Warlord | Discovered new exit (range 14) 20452 | -4/Warlord | Identified exit to Proximity Caves 20453 | -4/Warlord | Entered Proximity Caves 20647 | -3/Proximity Caves | Build established: Scout 20654 | -3/Proximity Caves | Spotted B-86 Titan 20665 | -3/Proximity Caves | Destroyed B-86 Titan 20742 | -3/Proximity Caves | Discovered exit to Research (range 8) 20745 | -3/Proximity Caves | Entered Research 20745 | -3/Research | Evolved 2 slots: Propulsion x1, Utility x1 20753 | -3/Research | Zion Hover Resupply teleported in 20784 | -3/Research | Found Antimissile System 20873 | -3/Research | Spotted B-86 Titan 20880 | -3/Research | Destroyed B-86 Titan 20902 | -3/Research | Retrieved Zion intel report: Prototype Schematics 20977 | -3/Research | Retrieved Zion intel report: Active Garrisons 20978 | -3/Research | Zion Heavy squad teleported in 21007 | -3/Research | Found Enh. Force Lance 21020 | -3/Research | Incoming investigation squad redirected 21024 | -3/Research | Discovered new exit (range 9) 21034 | -3/Research | Retrieved Zion intel report: Unaware Schematics 21035 | -3/Research | Zion Experimental squad teleported in 21112 | -3/Research | Identified exit to Quarantine 21210 | -3/Research | Entered Quarantine 21210 | -3/Quarantine | Accompanied by 3 allies 21238 | -3/Quarantine | Cryocooling Duct disabled 21253 | -3/Quarantine | Ambient heat levels rising (+20) 21253 | -3/Quarantine | Non-combat units ordered to evacuate 21359 | -3/Quarantine | Garrison activated, responded to threat 21385 | -3/Quarantine | Retrieved Zion intel report: Trap Installations 21443 | -3/Quarantine | Retrieved Zion intel report: Unaware Analyses 21445 | -3/Quarantine | Incoming investigation squad redirected 21502 | -3/Quarantine | Retrieved Zion intel report: Prototype Schematics 21525 | -3/Quarantine | Incoming investigation squad redirected 21538 | -3/Quarantine | Found Alien Impact Weapon 21586 | -3/Quarantine | Found Alien Artifact 21603 | -3/Quarantine | Spotted Fortress 21639 | -3/Quarantine | Discovered new exit (range 6) 21641 | -3/Quarantine | Identified exit to Section 7 21641 | -3/Quarantine | Entered Section 7 21647 | -3/Section 7 | Found Alien Artifact 21647 | -3/Section 7 | Identified Integrated Reactor 21647 | -3/Section 7 | Installed Integrated Reactor, increased core energy generation (+10) 21665 | -3/Section 7 | Spotted B-86 Titan 21666 | -3/Section 7 | Retrieved Zion intel report: Guard Positions 21686 | -3/Section 7 | Incoming investigation squad redirected 21691 | -3/Section 7 | Found Alien Artifact 21691 | -3/Section 7 | Identified Microwarp Drive 21703 | -3/Section 7 | Destroyed B-86 Titan 21706 | -3/Section 7 | Scanned by Researcher 21802 | -3/Section 7 | Discovered new exit (range 14) 21814 | -3/Section 7 | Entered Research 21814 | -2/Research | Evolved 2 slots: Weapon x2 21910 | -2/Research | Spotted B-90 Cyclops 21932 | -2/Research | Destroyed B-90 Cyclops 21960 | -2/Research | Identified Core Stripper 22122 | -2/Research | Retrieved Zion intel report: Trap Installations 22123 | -2/Research | Zion Light squad teleported in 22124 | -2/Research | Intercept squad dispatched 22130 | -2/Research | Spotted Tracker 22130 | -2/Research | Spotted Tracker 22152 | -2/Research | Destroyed Tracker 22155 | -2/Research | Spotted Combat Programmer 22161 | -2/Research | Destroyed Tracker 22167 | -2/Research | Destroyed Combat Programmer 22189 | -2/Research | Found Prototype Device 22189 | -2/Research | Identified Exp. Phase Shifter 22226 | -2/Research | Zion Infowar Resupply teleported in 22232 | -2/Research | Spotted Combat Programmer 22247 | -2/Research | Destroyed Combat Programmer 22369 | -2/Research | Retrieved Zion intel report: Unaware Analyses 22545 | -2/Research | Retrieved Zion intel report: Active Garrisons 22546 | -2/Research | Zion Infowar Resupply teleported in 22564 | -2/Research | First assault squad dispatched 22590 | -2/Research | Incoming assault squad redirected 22635 | -2/Research | Intercept squad dispatched 22670 | -2/Research | Spotted Tracker 22670 | -2/Research | Destroyed Tracker 22671 | -2/Research | Spotted Tracker 22679 | -2/Research | Destroyed Tracker 22679 | -2/Research | Spotted Tracker 22691 | -2/Research | Destroyed Tracker 22696 | -2/Research | Build established: Scavenger-Mutant 22724 | -2/Research | Spotted Combat Programmer 22731 | -2/Research | Destroyed Combat Programmer 22735 | -2/Research | Spotted Combat Programmer 22755 | -2/Research | Destroyed Combat Programmer 22755 | -2/Research | Spotted Combat Programmer 22782 | -2/Research | System corruption reached 10% 22790 | -2/Research | Destroyed Combat Programmer 22796 | -2/Research | Found Exp. Phase Shifter 22929 | -2/Research | Intercept squad dispatched 22937 | -2/Research | Discovered new exit (range 13) 22941 | -2/Research | Entered Access 22941 | -1/Access | Evolved 2 slots: Propulsion x1, Weapon x1 22944 | -1/Access | Identified BFG-9k Vortex Edition 22957 | -1/Access | Found Mni. Smartbomb Launcher 22996 | -1/Access | Zion Experimental squad teleported in 23050 | -1/Access | Energy Cycler disabled 23058 | -1/Access | Found Prototype Processor 23058 | -1/Access | Identified Exp. Core Analyzer 23135 | -1/Access | Retrieved Zion intel report: Active Terminals 23136 | -1/Access | Zion Demo squad teleported in 23138 | -1/Access | Intercept squad dispatched 23155 | -1/Access | Spotted B-99 Colossus 23155 | -1/Access | Spotted B-99 Colossus 23156 | -1/Access | Spotted Tracker 23156 | -1/Access | Spotted Tracker 23162 | -1/Access | Spotted Combat Programmer 23166 | -1/Access | Spotted Combat Programmer 23169 | -1/Access | Destroyed Tracker 23178 | -1/Access | Self-destructed Last Messages --------------- 23171_ Destroyed Med. Regenerative Plating. 23171_ Imp. Antigrav System temporarily disabled. 23173_ Spectral Interrupter explodes. 23173_ K-01 Serf destroyed. 23173_ Cmb. Antigrav System temporarily disabled. 23174_ Penetrated by EMDS Slug. 23174_ Lgt. Quantum Reactor destroyed. 23174_ Penetrated by EMDS Slug. 23175_ B2P33ZNTPALQJJH F&VOG, MY3 23175_ Lgt. Quantum Reactor destroyed. 23175_ Imp. Antigrav System temporarily disabled. 23176_ The unstable cave ceiling collapses. 23176_ Penetrated by EMDS Slug. 23176_ Adv. Heat Sink destroyed. 23176_ Dropped Mni. Smartbomb Launcher. 23176_ Dropped CR-A16's Behemoth Slayer. 23177_ Dropped Molecular Scythe. 23177_ Imp. Antigrav System temporarily disabled. 23177_ Penetrated by EMDS Slug. 23178_ The unstable cave ceiling collapses. Map ----- +----------------------------------------------------+ | ???????????????????????????# | | ???????????????????????????# | | ???????????????????????????# | | ???????????????????????????# = #####"########## | | ???????????????????????????## %*##############??# | | ???????????????????????????? "" "" #??# | | ???????????????????????????? "" "" !#??# | | ?????????????????????####### #??# | | ????????????????????? ## # = #??# | | ?????????????????????? ## # = #??# | | ?????????????????????? !## # #??# | | ?????????????????????? ## ###############??# | | ?????????????????????? ## #????????????????# | | ?????????????????????? ## #????????????????? | | ??????????????????????? ## p#????????????????? | | ??????????????????????? ## #????????????????? | | ????" ??????????????? ## #????????????????? | | ????" B ????????????? * # #???????????""???? | | ????" ###+######## ##??????????""???? | | ????" p #????????""""""?? | | ????" =% ###### """"""?? | | ????" !%% ! % / ""???? | | ????" ]%= ###### ""???? | | ????" ###+#### ## ###???????????????? | | ????? ????# #?????????????????? | | ????????????#] # @/ #?????????????????? | | ????????????# "## / ???????? | | ????????????# ""?# s ??? | | ????????????# ?""?# ???? | | ????????????# ??""?# ???? | | ????????????# ???""?# ############ ????? | | ????????????# ????T"?# # ????????????????? | | ????????????#?????""?# # ???????????????? | | ??????????????????""?# # ??????????????? | | ??????????????????""?# # ?????????????? | | ??????????????????""?# #? ????????????? | | ???????????????????"?# #? #???????????? | | ?????????????????????# #? #???????????? | | ?????????????????????# #? ???????????? | | ?????????????????????# #?? ##??????????? | | ?????????????????????# #?? #???????????? | | ?????????????????????# #?? = #???????????? | | ?????????????????????#p #?? %! #???????????? | | ????????????????????? ???? * ??????????????? | | ?????????????????????#####???? ????????????????? | | ?????????????????????????????????????????????????? | | ?????????????????????????????????????????????????? | | ?????????????????????????????????????????????????? | | ?????????????????????????????????????????????????? | | ?????????????????????????????????????????????????? | +----------------------------------------------------+ Best States ------------- Heat Dissipation 71 Energy Generation 55 Energy Capacity 900 Matter Stores 300 Matter Capacity 300 Sight Range 22 Robot Scan Range 18 Terrain Scan Density 10 Armor Coverage 450 Resistance: KI 50 Resistance: TH 70 Resistance: EX 20 Resistance: EM 35 Resistance: I 20 Resistance: S 20 Resistance: P 20 Propulsion Shielding 90 Utility Shielding 33 Weapon Shielding 100 Phase Shifting 20 Evasion (%) 78 Targeting Accuracy 6 Melee Accuracy 8 Target Analysis 8 Armor Integrity Analysis 50 Recoil Reduction 4 Offensive Hacking 10 Authchip Count 1 Trap Extractor Capacity 6 Item Schematics ----------------- Cmb. Airjet | -8/Materials | Scanalyzed Flail | -8/Materials | Scanalyzed Lgt. EM Pulse Cannon | -8/Materials | Scanalyzed Flexi-carbon Leg | -8/Materials | Scanalyzed Adv. Visual Processing Unit | -8/Materials | Scanalyzed Imp. Sensor Array | -8/Materials | Scanalyzed Heat Sink | -8/Materials | Scanalyzed System Shield | -8/Storage | Hacked Adv. Sensor Array | -8/Storage | Hacked Imp. Hacking Suite | -8/Storage | Hacked Gatling Laser | -7/Zion | Archive Magnetic Acceleration Cannon | -7/Zion | Archive Adv. ECM Suite | -7/Zion | Archive Imp. Carbon-fiber Leg | -7/Zion | Archive Microactuators | -7/Zion | Archive Imp. Heavy Armor Plating | -7/Zion | Archive Imp. Medium Treads | -7/Zion | Archive Adv. Field Recycling Unit | -7/Zion | Archive Fission Core | -7/Zion | Archive Mak. Axe | -7/Zion | Archive Imp. Thermal Generator | -7/Zion | Archive Weapon Cycler | -7/Zion | Archive Mak. Cloaking Device | -7/Zion | Archive Mak. Terrain Scan Processor | -7/Zion | Archive Arm. Medium Treads | -7/Zion | Archive Thermal Defense Suite | -6/Factory | Z-intel Prc. Shock Rifle | -6/Factory | Z-intel Cold Fusion Reactor | -6/Factory | Z-intel Cld. Plasma Cannon | -6/Factory | Z-intel Prc. Rocket Launcher | -6/Factory | Z-intel Cld. Cesium-ion Thruster | -6/Factory | Z-intel F-cell Engine | -6/Factory | Z-intel Biomechanical Wings | -6/Factory | Z-intel Cld. Aerolev Unit | -6/Factory | Z-intel Imp. Heavy Machine Gun | -6/Factory | Z-intel Combat Drone Bay | -6/Data Miner | Free Lgt. Regenerative Plating | -6/Data Miner | Free Cld. Nuclear Pulse Thruster | -6/Data Miner | Free Prc. Matter Filter | -6/Data Miner | Free Hvy. Proton Cannon | -6/Data Miner | Free Imp. Linear Gravjet | -6/Data Miner | Free Adv. Target Analyzer | -6/Data Miner | Free Railgun | -6/Data Miner | Free Cmb. Gravmag System | -6/Data Miner | Free Force Lance | -6/Data Miner | Free Imp. Remote Force Field | -6/Data Miner | Free Plasma Sword | -5/Factory | Z-intel Shock Maul | -5/Factory | Z-intel Prc. Assault Rifle | -5/Factory | Z-intel Cld. Gravmag System | -5/Factory | Z-intel Imp. Heavy Laser | -5/Factory | Z-intel Imp. Energy Well | -5/Factory | Z-intel Tri-rail Accelerator | -5/Factory | Z-intel Hvy. Proton Missile Launcher | -5/Factory | Z-intel Tiamat Missile Launcher | -5/Factory | Z-intel Lgt. Neutrino Core | -5/Factory | Z-intel Mni. Smartbomb Launcher | -5/Factory | Z-intel Impact Mace | -5/Factory | Z-intel Cld. Deuterium Engine | -5/Factory | Z-intel Gui. EMP Blaster | -5/Factory | Z-intel Imp. KE Penetrator | -5/Factory | Z-intel Cld. Fission Core | -5/Factory | Z-intel Com. Ion Cannon | -5/Factory | Z-intel Exp. Utility Shielding | -5/Factory | Z-intel Hvy. Deuterium Engine | -5/Factory | Z-intel Imp. Thermal Defense Suite | -5/Factory | Z-intel Fusion Reactor | -5/Factory | Z-intel Enh. Armored Leg | -5/Factory | Z-intel Gravity Neutralizer | -5/Factory | Z-intel Hvy. Gatling Laser | -5/Factory | Z-intel Kinetic Spear | -5/Factory | Z-intel Imp. Airjet | -5/Factory | Z-intel Imp. Spread Laser | -5/Factory | Z-intel Cld. Plasma Rifle | -5/Factory | Z-intel Cld. VTOL Module | -5/Factory | Z-intel Imp. Lightning Gun | -5/Hub_04(d) | Z-intel Exp. Heat Sink | -5/Hub_04(d) | Z-intel Tesla Bomb Launcher | -5/Hub_04(d) | Z-intel Antimatter Cannon | -5/Hub_04(d) | Z-intel Prc. Energy Filter | -5/Hub_04(d) | Z-intel Enh. Nuclear Core | -5/Hub_04(d) | Z-intel Enh. Flexi-carbon Leg | -5/Hub_04(d) | Z-intel Scatter Rocket Array | -5/Hub_04(d) | Z-intel Cld. Particle Cannon | -5/Hub_04(d) | Z-intel Exp. Cooling System | -4/Factory | Z-intel Adv. Matter Compressor | -4/Factory | Z-intel Adv. KE Penetrator | -4/Factory | Z-intel Hvy. Neutron Cannon | -4/Factory | Z-intel Enh. Coil Gun | -4/Factory | Z-intel Adv. Myomer Leg | -4/Factory | Z-intel Adv. Energy Well | -4/Factory | Z-intel Hvy. Wave Gun | -4/Factory | Z-intel Molecular Scythe | -4/Factory | Z-intel Mni. Fusion Reactor | -4/Factory | Z-intel Force Rifle | -4/Factory | Z-intel Exp. Targeting Computer | -4/Factory | Z-intel Armor Integrity Analyzer | -4/Factory | Z-intel Arm. Huge Wheel | -4/Factory | Z-intel Lgt. Angular Momentum Engine | -4/Factory | Z-intel Com. Matter Pod | -4/Factory | Z-intel Imp. Fusion Compressor | -4/Factory | Z-intel Adv. Melee Analysis Suite | -4/Factory | Z-intel Thermic Laser | -4/Factory | Z-intel Hvy. Siege Treads | -4/Factory | Z-intel Lyr. Light Armor Plating | -4/Factory | Z-intel Huge Storage Unit | -4/Factory | Z-intel Matter Compressor | -4/Factory | Z-intel Adv. Cryofiber Web | -4/Factory | Z-intel Point Defense Array | -4/Factory | Z-intel Hvy. Disruptor Cannon | -4/Factory | Z-intel Dispersion Rifle | -4/Factory | Z-intel Core Analyzer | -4/Factory | Z-intel Imp. Shield Generator | -4/Factory | Z-intel Fusion Compressor | -4/Factory | Z-intel Arm. Leg | -4/Factory | Z-intel Adv. System Shield | -4/Factory | Z-intel Com. Battery | -4/Factory | Z-intel Adv. Thermal Shield | -4/Factory | Z-intel Imp. Thermal Shield | -4/Factory | Z-intel Adv. Targeting Computer | -4/Factory | Z-intel Shock Absorption System | -4/Factory | Z-intel Matter Neutralizer | -4/Factory | Z-intel Lrn. Tractor Beam | -4/Factory | Z-intel Centrium Wheel | -4/Factory | Z-intel Energy Filter | -4/Factory | Z-intel Nuclear Pulse Array | -4/Factory | Z-intel Insulated Plating | -4/Factory | Z-intel Spectral Analyzer | -3/Research | Z-intel Cld. Field Propulsion Drive | -3/Research | Z-intel Lgt. Antimatter Cannon | -3/Research | Z-intel Exp. Coolant Injector | -3/Research | Z-intel Hdn. Centrium Wheel | -3/Research | Z-intel Hellfire Missile Launcher | -3/Research | Z-intel Tactical Quantum Warhead | -3/Research | Z-intel Adv. Kinecellerator | -3/Research | Z-intel Coolant Network | -3/Research | Z-intel Exp. Thermal Shield | -3/Research | Z-intel Com. Particle Reactor | -3/Quarantine | Archive Adv. Plasma Rifle | -3/Quarantine | Archive Exp. Field Recycling Unit | -3/Quarantine | Archive Exp. Thermal Generator | -3/Quarantine | Archive Lrn. Phase Cannon | -3/Quarantine | Archive Cld. Impulse Thruster | -3/Quarantine | Archive Adv. Remote Shield | -3/Quarantine | Archive Exp. System Shield | -3/Quarantine | Archive Adv. Thermal Defense Suite | -3/Quarantine | Z-intel Centrium Heavy Treads | -3/Quarantine | Z-intel Exp. Signal Interpreter | -3/Quarantine | Z-intel Enh. Force Rifle | -3/Quarantine | Z-intel Exp. Matter Compressor | -3/Quarantine | Z-intel Exp. Thermal Defense Suite | -3/Quarantine | Z-intel Adv. Gravity Neutralizer | -3/Quarantine | Z-intel Centrium Greatsword | -3/Quarantine | Z-intel Imp. Diametric Drive | -3/Quarantine | Z-intel Helical Railgun | -3/Quarantine | Z-intel Hvy. Dispersion Rifle | -3/Quarantine | Z-intel Robot Schematics ------------------ S-27 Virus | -7/Zion | Archive G-47 Trooper | -7/Zion | Archive L-41 Fighter | -7/Zion | Archive H-88 Terminator | -7/Zion | Archive B-48 Gladiator | -6/Data Miner | Free M-36 Artificer | -6/Data Miner | Free A-02 Transporter | -3/Research | Z-intel T-07 Excavator | -3/Research | Z-intel B-60 Warrior | -3/Research | Z-intel S-43 Plague | -3/Research | Z-intel R-10 Processor | -3/Quarantine | Archive H-77 Assassin | -3/Quarantine | Archive O-32 Director | -3/Quarantine | Archive E-15 Imp | -3/Quarantine | Archive Fabricated ------------ Cmb. Airjet | x2 | -7/Factory | Authchip Adv. Sensor Array | x1 | -7/Factory | Authchip Cmb. Airjet | x2 | -7/Factory | Authchip Force Lance | x1 | -6/Factory | Preloaded F-cell Engine | x1 | -6/Factory | Authchip Lgt. Regenerative Plating | x1 | -5/Factory | Authchip Cmb. Gravmag System | x2 | -5/Factory | Authchip H-88 Terminator | x2 | -5/Factory B-60 Warrior | x3 | -4/Factory | Preloaded Molecular Scythe | x1 | -4/Factory | Authchip Alien Tech Used ----------------- Core Expander Integrated Reactor Microwarp Drive Core Stripper Achievements -------------- Ambidextrous Challenges ------------ None Game ------ Seed DisposableCloakBox Manual? 0 Play Time 04:18:55 Cumulative 165.3 hours Start 2022.05.07 @ 16:01:54 End 2022.05.07 @ 20:40:09 Sessions 7 Manual Loads 0 Difficulty Adventurer Special Mode None Game No. 71 Rogue 0 Adventurer 71 Explorer 0 Win Type - Total 12 Types 6/1/1/1/1/0/0/1/1 Lore% 88 Gallery% 81 Achievement% 74 Wizard Run 0 Options --------- ASCII 0 Keyboard 0 Movement Numpad Keybinds 0 Fullscreen 2 Font 18/SmallcapsGlow Map View 76x50 Tactical HUD 1 Map Filters NONE Filters NONE Steam 1 RUN: eb701bfb-bd5d-4051-b579-ebd6dab98cfd